Workbook

Sheet 1.NFHS-3 scores & ranks (state)
A1: Calculation and Tabulation for computing Linear Aggregation (LA), Geometric Mean (GM) and MANUSH scores and Ranks using NFHS-3 data for States in India, 2005-06
A3: S.No. | B3: State | C3: Stunted (%) | D3: Wasted (%) | E3: Anaemic (%) | F3: Overweight (%) | G3: weighted standardised value_stunting | H3: weighted standardised value_wasting | I3: weighted standardised value_anaemia | J3: weighted standardised value_overweight | K3: LA scores | L3: LA rank | M3: GM scores | N3: GM rank | O3: MANUSH (α=2) scores | P3: MANUSH (α=2) rank | Q3: MANUSH (α=3) scores | R3: MANUSH (α=5) scores | S3: MANUSH (α=10) scores
A4: 1 | B4: Andhra Pradesh | C4: 42.7 | D4: 12.2 | E4: 70.8 | F4: 2.2 | G4: 0.19 | H4: 0.09 | I4: 0.13 | J4: 0.06 | K4: 0.48 | L4: 9 | M4: 0.55 | N4: 12 | O4: 0.50 | P4: 8 | Q4: 0.53 | R4: 0.56 | S4: 0.61
A5: 2 | B5: Arunanchal Pradesh | C5: 43.3 | D5: 15.3 | E5: 56.9 | F5: 3.4 | G5: 0.19 | H5: 0.12 | I5: 0.11 | J5: 0.09 | K5: 0.51 | L5: 11 | M5: 0.54 | N5: 8 | O5: 0.52 | P5: 9 | Q5: 0.54 | R5: 0.57 | S5: 0.61
A6: 3 | B6: Assam | C6: 46.5 | D6: 13.7 | E6: 69.6 | F6: 1.2 | G6: 0.21 | H6: 0.10 | I6: 0.13 | J6: 0.03 | K6: 0.47 | L6: 8 | M6: 0.57 | N6: 15 | O6: 0.53 | P6: 12 | Q6: 0.56 | R6: 0.61 | S6: 0.66
A7: 4 | B7: Bihar | C7: 55.6 | D7: 27.1 | E7: 78 | F7: 0.3 | G7: 0.25 | H7: 0.20 | I7: 0.15 | J7: 0.01 | K7: 0.61 | L7: 25 | M7: 0.77 | N7: 27 | O7: 0.69 | P7: 25 | Q7: 0.73 | R7: 0.76 | S7: 0.80
A8: 5 | B8: Chhattisgarh | C8: 52.9 | D8: 19.5 | E8: 71.2 | F8: 1.3 | G8: 0.24 | H8: 0.15 | I8: 0.13 | J8: 0.04 | K8: 0.55 | L8: 23 | M8: 0.67 | N8: 23 | O8: 0.61 | P8: 22 | Q8: 0.65 | R8: 0.69 | S8: 0.75
A9: 6 | B9: Delhi | C9: 42.2 | D9: 15.4 | E9: 57 | F9: 4 | G9: 0.19 | H9: 0.12 | I9: 0.11 | J9: 0.11 | K9: 0.52 | L9: 14 | M9: 0.55 | N9: 10 | O9: 0.53 | P9: 13 | Q9: 0.54 | R9: 0.56 | S9: 0.60
A10: 7 | B10: Goa | C10: 25.6 | D10: 14.1 | E10: 38.2 | F10: 4.3 | G10: 0.12 | H10: 0.11 | I10: 0.07 | J10: 0.12 | K10: 0.41 | L10: 4 | M10: 0.41 | N10: 3 | O10: 0.41 | P10: 3 | Q10: 0.40 | R10: 0.40 | S10: 0.40
A11: 8 | B11: Gujarat | C11: 51.7 | D11: 18.7 | E11: 69.7 | F11: 1.2 | G11: 0.23 | H11: 0.14 | I11: 0.13 | J11: 0.03 | K11: 0.54 | L11: 21 | M11: 0.64 | N11: 22 | O11: 0.59 | P11: 21 | Q11: 0.63 | R11: 0.68 | S11: 0.73
A12: 9 | B12: Haryana | C12: 45.7 | D12: 19.1 | E12: 72.3 | F12: 1.4 | G12: 0.21 | H12: 0.14 | I12: 0.14 | J12: 0.04 | K12: 0.52 | L12: 15 | M12: 0.60 | N12: 20 | O12: 0.56 | P12: 20 | Q12: 0.59 | R12: 0.61 | S12: 0.65
A13: 10 | B13: Himachal Pradesh | C13: 38.6 | D13: 19.3 | E13: 54.7 | F13: 1.1 | G13: 0.17 | H13: 0.15 | I13: 0.10 | J13: 0.03 | K13: 0.45 | L13: 7 | M13: 0.49 | N13: 7 | O13: 0.49 | P13: 7 | Q13: 0.51 | R13: 0.53 | S13: 0.56
A14: 11 | B14: Jammu and Kashmir | C14: 35 | D14: 14.8 | E14: 58.6 | F14: 2.3 | G14: 0.16 | H14: 0.11 | I14: 0.11 | J14: 0.06 | K14: 0.44 | L14: 5 | M14: 0.47 | N14: 5 | O14: 0.45 | P14: 5 | Q14: 0.46 | R14: 0.47 | S14: 0.50
A15: 12 | B15: Jharkhand | C15: 49.8 | D15: 32.3 | E15: 70.3 | F15: 0.6 | G15: 0.22 | H15: 0.24 | I15: 0.13 | J15: 0.02 | K15: 0.61 | L15: 26 | M15: 0.72 | N15: 24 | O15: 0.70 | P15: 26 | Q15: 0.73 | R15: 0.77 | S15: 0.80
A16: 13 | B16: Karnataka | C16: 43.7 | D16: 17.6 | E16: 70.4 | F16: 2.6 | G16: 0.20 | H16: 0.13 | I16: 0.13 | J16: 0.07 | K16: 0.53 | L16: 20 | M16: 0.59 | N16: 19 | O16: 0.55 | P16: 16 | Q16: 0.56 | R16: 0.59 | S16: 0.62
A17: 14 | B17: Kerela | C17: 24.5 | D17: 15.9 | E17: 44.5 | F17: 1.2 | G17: 0.11 | H17: 0.12 | I17: 0.08 | J17: 0.03 | K17: 0.35 | L17: 1 | M17: 0.36 | N17: 1 | O17: 0.36 | P17: 1 | Q17: 0.37 | R17: 0.38 | S17: 0.39
A18: 15 | B18: Madhya Pradesh | C18: 50 | D18: 35 | E18: 74.1 | F18: 1 | G18: 0.22 | H18: 0.26 | I18: 0.14 | J18: 0.03 | K18: 0.65 | L18: 27 | M18: 0.77 | N18: 28 | O18: 0.73 | P18: 28 | Q18: 0.77 | R18: 0.81 | S18: 0.85
A19: 16 | B19: Maharashtra | C19: 46.3 | D19: 16.5 | E19: 63.4 | F19: 2.8 | G19: 0.21 | H19: 0.12 | I19: 0.12 | J19: 0.08 | K19: 0.53 | L19: 19 | M19: 0.58 | N19: 17 | O19: 0.55 | P19: 17 | Q19: 0.57 | R19: 0.61 | S19: 0.66
A20: 17 | B20: Manipur | C20: 35.6 | D20: 9 | E20: 41.1 | F20: 2.2 | G20: 0.16 | H20: 0.07 | I20: 0.08 | J20: 0.06 | K20: 0.36 | L20: 2 | M20: 0.39 | N20: 2 | O20: 0.39 | P20: 2 | Q20: 0.42 | R20: 0.46 | S20: 0.50
A21: 18 | B21: Meghalaya | C21: 55.1 | D21: 30.7 | E21: 64.4 | F21: 2.6 | G21: 0.25 | H21: 0.23 | I21: 0.12 | J21: 0.07 | K21: 0.67 | L21: 28 | M21: 0.76 | N21: 26 | O21: 0.72 | P21: 27 | Q21: 0.75 | R21: 0.78 | S21: 0.81
A22: 19 | B22: Mizoram | C22: 39.8 | D22: 9 | E22: 44.2 | F22: 4.3 | G22: 0.18 | H22: 0.07 | I22: 0.08 | J22: 0.12 | K22: 0.45 | L22: 6 | M22: 0.47 | N22: 6 | O22: 0.47 | P22: 6 | Q22: 0.49 | R22: 0.52 | S22: 0.56
A23: 20 | B23: Odisha | C23: 45 | D23: 19.6 | E23: 65 | F23: 1.7 | G23: 0.20 | H23: 0.15 | I23: 0.12 | J23: 0.05 | K23: 0.52 | L23: 12 | M23: 0.58 | N23: 16 | O23: 0.55 | P23: 18 | Q23: 0.57 | R23: 0.60 | S23: 0.64
A24: 21 | B24: Punjab | C24: 36.7 | D24: 9.2 | E24: 66.4 | F24: 1.5 | G24: 0.17 | H24: 0.07 | I24: 0.12 | J24: 0.04 | K24: 0.40 | L24: 3 | M24: 0.46 | N24: 4 | O24: 0.43 | P24: 4 | Q24: 0.46 | R24: 0.49 | S24: 0.52
A25: 22 | B25: Rajasthan | C25: 43.7 | D25: 20.4 | E25: 69.7 | F25: 1.6 | G25: 0.20 | H25: 0.15 | I25: 0.13 | J25: 0.04 | K25: 0.52 | L25: 18 | M25: 0.59 | N25: 18 | O25: 0.56 | P25: 19 | Q25: 0.58 | R25: 0.60 | S25: 0.63
A26: 23 | B26: Sikkim | C26: 38.3 | D26: 9.7 | E26: 59.2 | F26: 8.3 | G26: 0.17 | H26: 0.07 | I26: 0.11 | J26: 0.22 | K26: 0.58 | L26: 24 | M26: 0.64 | N26: 21 | O26: 0.61 | P26: 23 | Q26: 0.64 | R26: 0.67 | S26: 0.71
A27: 24 | B27: Tamil Nadu | C27: 30.9 | D27: 22.2 | E27: 64.2 | F27: 3.6 | G27: 0.14 | H27: 0.17 | I27: 0.12 | J27: 0.10 | K27: 0.52 | L27: 17 | M27: 0.54 | N27: 9 | O27: 0.52 | P27: 10 | Q27: 0.52 | R27: 0.52 | S27: 0.54
A28: 25 | B28: Tripura | C28: 35.7 | D28: 24.6 | E28: 62.9 | F28: 2.2 | G28: 0.16 | H28: 0.19 | I28: 0.12 | J28: 0.06 | K28: 0.52 | L28: 16 | M28: 0.56 | N28: 13 | O28: 0.54 | P28: 15 | Q28: 0.56 | R28: 0.58 | S28: 0.60
A29: 26 | B29: Uttar Pradesh | C29: 56.8 | D29: 14.8 | E29: 73.9 | F29: 1.2 | G29: 0.26 | H29: 0.11 | I29: 0.14 | J29: 0.03 | K29: 0.54 | L29: 22 | M29: 0.72 | N29: 25 | O29: 0.61 | P29: 24 | Q29: 0.66 | R29: 0.73 | S29: 0.81
A30: 27 | B30: Uttarakhand | C30: 44.4 | D30: 18.8 | E30: 61.4 | F30: 2.3 | G30: 0.20 | H30: 0.14 | I30: 0.11 | J30: 0.06 | K30: 0.52 | L30: 13 | M30: 0.56 | N30: 14 | O30: 0.54 | P30: 14 | Q30: 0.56 | R30: 0.59 | S30: 0.63
A31: 28 | B31: West Bengal | C31: 44.6 | D31: 16.9 | E31: 61 | F31: 1.9 | G31: 0.20 | H31: 0.13 | I31: 0.11 | J31: 0.05 | K31: 0.49 | L31: 10 | M31: 0.55 | N31: 11 | O31: 0.52 | P31: 11 | Q31: 0.55 | R31: 0.59 | S31: 0.63

Sheet 2.NFHS-4 scores & ranks (state)
A1: Calculation and Tabulation for computing Linear Aggregation (LA), Geometric Mean (GM) and MANUSH scores and Ranks using NFHS-4 data for States in India, 2015-16
A3: S.No. | B3: State | C3: Stunted (%) | D3: Wasted (%) | E3: Anaemic (%) | F3: Overweight (%) | G3: weighted standardised value_stunting | H3: weighted standardised value_wasting | I3: weighted standardised value_anaemia | J3: weighted standardised value_overweight | K3: LA scores | L3: LA rank | M3: GM scores | N3: GM rank | O3: MANUSH (α=2) scores | P3: MANUSH (α=2) rank | Q3: MANUSH (α=3) scores | R3: MANUSH (α=5) scores | S3: MANUSH (α=10) scores
A4: 1 | B4: Andaman & Nicobar Island | C4: 23.3 | D4: 18.9 | E4: 49 | F4: 3 | G4: 0.10 | H4: 0.14 | I4: 0.09 | J4: 0.08 | K4: 0.42 | L4: 13 | M4: 0.43 | N4: 9 | O4: 0.42 | P4: 10 | Q4: 0.42 | R4: 0.43 | S4: 0.45
A5: 2 | B5: Andhra Pradesh | C5: 31.4 | D5: 17.2 | E5: 58.6 | F5: 1.2 | G5: 0.14 | H5: 0.13 | I5: 0.11 | J5: 0.03 | K5: 0.41 | L5: 11 | M5: 0.45 | N5: 12 | O5: 0.44 | P5: 12 | Q5: 0.45 | R5: 0.46 | S5: 0.46
A6: 3 | B6: Arunanchal Pradesh | C6: 29.4 | D6: 17.3 | E6: 54.2 | F6: 4.9 | G6: 0.13 | H6: 0.13 | I6: 0.10 | J6: 0.13 | K6: 0.50 | L6: 21 | M6: 0.50 | N6: 20 | O6: 0.49 | P6: 20 | Q6: 0.48 | R6: 0.47 | S6: 0.46
A7: 4 | B7: Assam | C7: 36.4 | D7: 17 | E7: 35.7 | F7: 2.3 | G7: 0.16 | H7: 0.13 | I7: 0.07 | J7: 0.06 | K7: 0.42 | L7: 14 | M7: 0.44 | N7: 11 | O7: 0.44 | P7: 14 | Q7: 0.46 | R7: 0.49 | S7: 0.52
A8: 5 | B8: Bihar | C8: 48.3 | D8: 20.8 | E8: 63.5 | F8: 1.2 | G8: 0.22 | H8: 0.16 | I8: 0.12 | J8: 0.03 | K8: 0.53 | L8: 29 | M8: 0.60 | N8: 32 | O8: 0.58 | P8: 32 | Q8: 0.61 | R8: 0.64 | S8: 0.69
A9: 6 | B9: Chandigarh | C9: 28.7 | D9: 10.9 | E9: 73.1 | F9: 1.1 | G9: 0.13 | H9: 0.08 | I9: 0.14 | J9: 0.03 | K9: 0.38 | L9: 7 | M9: 0.46 | N9: 16 | O9: 0.40 | P9: 9 | Q9: 0.42 | R9: 0.44 | S9: 0.45
A10: 7 | B10: Chhattisgarh | C10: 37.6 | D10: 23.1 | E10: 41.6 | F10: 2.9 | G10: 0.17 | H10: 0.17 | I10: 0.08 | J10: 0.08 | K10: 0.50 | L10: 22 | M10: 0.52 | N10: 22 | O10: 0.52 | P10: 24 | Q10: 0.54 | R10: 0.56 | S10: 0.58
A11: 8 | B11: Dadar and Nagar Havelli | C11: 41.7 | D11: 27.6 | E11: 84.6 | F11: 4.5 | G11: 0.19 | H11: 0.21 | I11: 0.16 | J11: 0.12 | K11: 0.68 | L11: 36 | M11: 0.81 | N11: 36 | O11: 0.67 | P11: 36 | Q11: 0.67 | R11: 0.67 | S11: 0.68
A12: 9 | B12: Daman and Diu | C12: 23.4 | D12: 24.1 | E12: 73.8 | F12: 2.1 | G12: 0.11 | H12: 0.18 | I12: 0.14 | J12: 0.06 | K12: 0.48 | L12: 20 | M12: 0.55 | N12: 26 | O12: 0.50 | P12: 23 | Q12: 0.52 | R12: 0.54 | S12: 0.58
A13: 10 | B13: Delhi | C13: 32.3 | D13: 17.1 | E13: 59.7 | F13: 1.2 | G13: 0.15 | H13: 0.13 | I13: 0.11 | J13: 0.03 | K13: 0.42 | L13: 12 | M13: 0.45 | N13: 14 | O13: 0.44 | P13: 13 | Q13: 0.45 | R13: 0.46 | S13: 0.47
A14: 11 | B14: Goa | C14: 20.1 | D14: 21.9 | E14: 48.3 | F14: 3.7 | G14: 0.09 | H14: 0.17 | I14: 0.09 | J14: 0.10 | K14: 0.45 | L14: 16 | M14: 0.46 | N14: 15 | O14: 0.45 | P14: 15 | Q14: 0.46 | R14: 0.48 | S14: 0.52
A15: 12 | B15: Gujarat | C15: 38.5 | D15: 26.4 | E15: 62.6 | F15: 1.9 | G15: 0.17 | H15: 0.20 | I15: 0.12 | J15: 0.05 | K15: 0.54 | L15: 31 | M15: 0.58 | N15: 31 | O15: 0.57 | P15: 31 | Q15: 0.59 | R15: 0.62 | S15: 0.64
A16: 13 | B16: Haryana | C16: 34 | D16: 21.2 | E16: 71.7 | F16: 3.1 | G16: 0.15 | H16: 0.16 | I16: 0.13 | J16: 0.08 | K16: 0.53 | L16: 30 | M16: 0.57 | N16: 29 | O16: 0.53 | P16: 26 | Q16: 0.53 | R16: 0.53 | S16: 0.53
A17: 14 | B17: Himachal Pradesh | C17: 26.3 | D17: 13.7 | E17: 53.7 | F17: 1.9 | G17: 0.12 | H17: 0.10 | I17: 0.10 | J17: 0.05 | K17: 0.37 | L17: 6 | M17: 0.39 | N17: 6 | O17: 0.38 | P17: 5 | Q17: 0.38 | R17: 0.38 | S17: 0.39
A18: 15 | B18: Jammu and Kashmir | C18: 27.4 | D18: 12.1 | E18: 54.5 | F18: 5.6 | G18: 0.12 | H18: 0.09 | I18: 0.10 | J18: 0.15 | K18: 0.47 | L18: 19 | M18: 0.48 | N18: 19 | O18: 0.47 | P18: 17 | Q18: 0.47 | R18: 0.47 | S18: 0.48
A19: 16 | B19: Jharkhand | C19: 45.3 | D19: 29 | E19: 69.9 | F19: 1.5 | G19: 0.20 | H19: 0.22 | I19: 0.13 | J19: 0.04 | K19: 0.59 | L19: 35 | M19: 0.66 | N19: 35 | O19: 0.64 | P19: 35 | Q19: 0.67 | R19: 0.70 | S19: 0.72
A20: 17 | B20: Karnataka | C20: 36.2 | D20: 26.1 | E20: 60.9 | F20: 2.6 | G20: 0.16 | H20: 0.20 | I20: 0.11 | J20: 0.07 | K20: 0.54 | L20: 32 | M20: 0.57 | N20: 30 | O20: 0.56 | P20: 30 | Q20: 0.58 | R20: 0.60 | S20: 0.63
A21: 18 | B21: Kerela | C21: 19.7 | D21: 15.7 | E21: 35.7 | F21: 3.4 | G21: 0.09 | H21: 0.12 | I21: 0.07 | J21: 0.09 | K21: 0.37 | L21: 4 | M21: 0.37 | N21: 3 | O21: 0.36 | P21: 3 | Q21: 0.36 | R21: 0.37 | S21: 0.38
A22: 19 | B22: Lakshwadeep | C22: 27 | D22: 13.8 | E22: 53.6 | F22: 1.6 | G22: 0.12 | H22: 0.10 | I22: 0.10 | J22: 0.04 | K22: 0.37 | L22: 5 | M22: 0.39 | N22: 5 | O22: 0.38 | P22: 6 | Q22: 0.38 | R22: 0.39 | S22: 0.39
A23: 20 | B23: Madhya Pradesh | C23: 42 | D23: 25.8 | E23: 68.9 | F23: 1.7 | G23: 0.19 | H23: 0.19 | I23: 0.13 | J23: 0.05 | K23: 0.56 | L23: 33 | M23: 0.61 | N23: 33 | O23: 0.59 | P23: 33 | Q23: 0.61 | R23: 0.63 | S23: 0.65
A24: 21 | B24: Maharashtra | C24: 34.4 | D24: 25.6 | E24: 53.8 | F24: 1.9 | G24: 0.15 | H24: 0.19 | I24: 0.10 | J24: 0.05 | K24: 0.50 | L24: 23 | M24: 0.53 | N24: 24 | O24: 0.53 | P24: 27 | Q24: 0.55 | R24: 0.58 | S24: 0.61
A25: 22 | B25: Manipur | C25: 28.9 | D25: 6.8 | E25: 23.9 | F25: 3.1 | G25: 0.13 | H25: 0.05 | I25: 0.04 | J25: 0.08 | K25: 0.31 | L25: 1 | M25: 0.32 | N25: 1 | O25: 0.33 | P25: 1 | Q25: 0.35 | R25: 0.38 | S25: 0.41
A26: 23 | B26: Meghalaya | C26: 43.8 | D26: 15.3 | E26: 48 | F26: 3.9 | G26: 0.20 | H26: 0.12 | I26: 0.09 | J26: 0.11 | K26: 0.51 | L26: 27 | M26: 0.53 | N26: 25 | O26: 0.52 | P26: 25 | Q26: 0.54 | R26: 0.57 | S26: 0.62
A27: 24 | B27: Mizoram | C27: 28 | D27: 6.1 | E27: 19.3 | F27: 4.2 | G27: 0.13 | H27: 0.05 | I27: 0.04 | J27: 0.11 | K27: 0.32 | L27: 2 | M27: 0.33 | N27: 2 | O27: 0.35 | P27: 2 | Q27: 0.37 | R27: 0.39 | S27: 0.41
A28: 25 | B28: Nagaland | C28: 28.6 | D28: 11.2 | E28: 26.4 | F28: 3.8 | G28: 0.13 | H28: 0.08 | I28: 0.05 | J28: 0.10 | K28: 0.36 | L28: 3 | M28: 0.37 | N28: 4 | O28: 0.37 | P28: 4 | Q28: 0.38 | R28: 0.39 | S28: 0.41
A29: 26 | B29: Odisha | C29: 34.1 | D29: 20.4 | E29: 44.6 | F29: 2.6 | G29: 0.15 | H29: 0.15 | I29: 0.08 | J29: 0.07 | K29: 0.46 | L29: 18 | M29: 0.47 | N29: 17 | O29: 0.47 | P29: 19 | Q29: 0.49 | R29: 0.50 | S29: 0.52
A30: 27 | B30: Puducherry | C30: 23.7 | D30: 23.6 | E30: 44.9 | F30: 2.2 | G30: 0.11 | H30: 0.18 | I30: 0.08 | J30: 0.06 | K30: 0.43 | L30: 15 | M30: 0.45 | N30: 13 | O30: 0.45 | P30: 16 | Q30: 0.48 | R30: 0.51 | S30: 0.56
A31: 28 | B31: Punjab | C31: 25.7 | D31: 15.6 | E31: 56.6 | F31: 2.3 | G31: 0.12 | H31: 0.12 | I31: 0.11 | J31: 0.06 | K31: 0.40 | L31: 9 | M31: 0.42 | N31: 8 | O31: 0.40 | P31: 7 | Q31: 0.40 | R31: 0.40 | S31: 0.40
A32: 29 | B32: Rajasthan | C32: 39.1 | D32: 23 | E32: 60.3 | F32: 2.1 | G32: 0.18 | H32: 0.17 | I32: 0.11 | J32: 0.06 | K32: 0.52 | L32: 28 | M32: 0.55 | N32: 27 | O32: 0.54 | P32: 28 | Q32: 0.56 | R32: 0.58 | S32: 0.59
A33: 30 | B33: Sikkim | C33: 29.6 | D33: 14.2 | E33: 55.1 | F33: 8.6 | G33: 0.13 | H33: 0.11 | I33: 0.10 | J33: 0.23 | K33: 0.58 | L33: 34 | M33: 0.64 | N33: 34 | O33: 0.60 | P33: 34 | Q33: 0.62 | R33: 0.67 | S33: 0.73
A34: 31 | B34: Tamil Nadu | C34: 27.1 | D34: 19.7 | E34: 50.7 | F34: 5 | G34: 0.12 | H34: 0.15 | I34: 0.09 | J34: 0.13 | K34: 0.50 | L34: 24 | M34: 0.50 | N34: 21 | O34: 0.49 | P34: 21 | Q34: 0.49 | R34: 0.49 | S34: 0.49
A35: 32 | B35: Telangana | C35: 28.1 | D35: 18 | E35: 60.7 | F35: 0.7 | G35: 0.13 | H35: 0.14 | I35: 0.11 | J35: 0.02 | K35: 0.39 | L35: 8 | M35: 0.43 | N35: 10 | O35: 0.43 | P35: 11 | Q35: 0.44 | R35: 0.45 | S35: 0.45
A36: 33 | B36: Tripura | C36: 24.3 | D36: 16.8 | E36: 48.3 | F36: 3 | G36: 0.11 | H36: 0.13 | I36: 0.09 | J36: 0.08 | K36: 0.41 | L36: 10 | M36: 0.41 | N36: 7 | O36: 0.40 | P36: 8 | Q36: 0.40 | R36: 0.40 | S36: 0.41
A37: 34 | B37: Uttar Pradesh | C37: 46.3 | D37: 17.9 | E37: 63.2 | F37: 1.5 | G37: 0.21 | H37: 0.13 | I37: 0.12 | J37: 0.04 | K37: 0.50 | L37: 25 | M37: 0.57 | N37: 28 | O37: 0.54 | P37: 29 | Q37: 0.57 | R37: 0.61 | S37: 0.66
A38: 35 | B38: Uttarakhand | C38: 33.5 | D38: 19.5 | E38: 59.8 | F38: 3.5 | G38: 0.15 | H38: 0.15 | I38: 0.11 | J38: 0.09 | K38: 0.50 | L38: 26 | M38: 0.52 | N38: 23 | O38: 0.50 | P38: 22 | Q38: 0.50 | R38: 0.50 | S38: 0.50
A39: 36 | B39: West Bengal | C39: 32.5 | D39: 20.3 | E39: 54.2 | F39: 2.1 | G39: 0.15 | H39: 0.15 | I39: 0.10 | J39: 0.06 | K39: 0.46 | L39: 17 | M39: 0.48 | N39: 18 | O39: 0.47 | P39: 18 | Q39: 0.48 | R39: 0.49 | S39: 0.51

Sheet 3.CNNS scores & ranks (state)
A1: Calculation and Tabulation for computing Linear Aggregation (LA), Geometric Mean (GM) and MANUSH scores and Ranks using CNNS data for States in India, 2016-18
A3: S.No. | B3: State | C3: Stunted (%) | D3: Wasted (%) | E3: Anaemic (%) | F3: Overweight (%) | G3: weighted standardised value_stunting | H3: weighted standardised value_wasting | I3: weighted standardised value_anaemia | J3: weighted standardised value_overweight | K3: LA scores | L3: LA rank | M3: GM scores | N3: GM rank | O3: MANUSH (α=2) scores | P3: MANUSH (α=2) rank | Q3: MANUSH (α=3) scores | R3: MANUSH (α=5) scores | S3: MANUSH (α=10) scores
A4: 1 | B4: Andhra Pradesh | C4: 31.5 | D4: 17.1 | E4: 39.6 | F4: 1.3 | G4: 0.14 | H4: 0.13 | I4: 0.07 | J4: 0.04 | K4: 0.38 | L4: 16 | M4: 0.40 | N4: 14 | O4: 0.41 | P4: 14 | Q4: 0.43 | R4: 0.44 | S4: 0.46
A5: 2 | B5: Arunanchal Pradesh | C5: 28 | D5: 6.8 | E5: 28.3 | F5: 5 | G5: 0.13 | H5: 0.05 | I5: 0.05 | J5: 0.13 | K5: 0.36 | L5: 10 | M5: 0.38 | N5: 9 | O5: 0.39 | P5: 8 | Q5: 0.41 | R5: 0.43 | S5: 0.44
A6: 3 | B6: Assam | C6: 32.4 | D6: 19.4 | E6: 33.7 | F6: 5 | G6: 0.15 | H6: 0.15 | I6: 0.06 | J6: 0.13 | K6: 0.49 | L6: 30 | M6: 0.49 | N6: 28 | O6: 0.50 | P6: 28 | Q6: 0.50 | R6: 0.50 | S6: 0.50
A7: 4 | B7: Bihar | C7: 42 | D7: 14.5 | E7: 43.7 | F7: 0.6 | G7: 0.19 | H7: 0.11 | I7: 0.08 | J7: 0.02 | K7: 0.40 | L7: 18 | M7: 0.45 | N7: 21 | O7: 0.46 | P7: 22 | Q7: 0.50 | R7: 0.54 | S7: 0.60
A8: 5 | B8: Chhattisgarh | C8: 35.4 | D8: 19.3 | E8: 40.8 | F8: 0.9 | G8: 0.16 | H8: 0.15 | I8: 0.08 | J8: 0.02 | K8: 0.41 | L8: 21 | M8: 0.43 | N8: 20 | O8: 0.45 | P8: 20 | Q8: 0.48 | R8: 0.50 | S8: 0.52
A9: 6 | B9: Delhi | C9: 28.8 | D9: 14.8 | E9: 47 | F9: 2 | G9: 0.13 | H9: 0.11 | I9: 0.09 | J9: 0.05 | K9: 0.38 | L9: 17 | M9: 0.40 | N9: 13 | O9: 0.39 | P9: 9 | Q9: 0.40 | R9: 0.40 | S9: 0.42
A10: 7 | B10: Goa | C10: 19.6 | D10: 15.8 | E10: 22.1 | F10: 3.2 | G10: 0.09 | H10: 0.12 | I10: 0.04 | J10: 0.09 | K10: 0.33 | L10: 3 | M10: 0.34 | N10: 3 | O10: 0.34 | P10: 4 | Q10: 0.35 | R10: 0.36 | S10: 0.38
A11: 8 | B11: Gujarat | C11: 39.1 | D11: 17 | E11: 38.2 | F11: 1.7 | G11: 0.18 | H11: 0.13 | I11: 0.07 | J11: 0.05 | K11: 0.42 | L11: 22 | M11: 0.45 | N11: 22 | O11: 0.46 | P11: 21 | Q11: 0.48 | R11: 0.52 | S11: 0.56
A12: 9 | B12: Haryana | C12: 34.9 | D12: 11.7 | E12: 48.3 | F12: 1.4 | G12: 0.16 | H12: 0.09 | I12: 0.09 | J12: 0.04 | K12: 0.37 | L12: 12 | M12: 0.40 | N12: 17 | O12: 0.40 | P12: 12 | Q12: 0.42 | R12: 0.46 | S12: 0.50
A13: 10 | B13: Himachal Pradesh | C13: 28.4 | D13: 11 | E13: 29.7 | F13: 2.7 | G13: 0.13 | H13: 0.08 | I13: 0.06 | J13: 0.07 | K13: 0.34 | L13: 5 | M13: 0.35 | N13: 4 | O13: 0.35 | P13: 5 | Q13: 0.36 | R13: 0.38 | S13: 0.40
A14: 11 | B14: Jammu and Kashmir | C14: 15.5 | D14: 14.9 | E14: 27.1 | F14: 6.1 | G14: 0.07 | H14: 0.11 | I14: 0.05 | J14: 0.16 | K14: 0.40 | L14: 20 | M14: 0.42 | N14: 19 | O14: 0.42 | P14: 19 | Q14: 0.45 | R14: 0.48 | S14: 0.52
A15: 12 | B15: Jharkhand | C15: 36.2 | D15: 29.1 | E15: 43.7 | F15: 0.5 | G15: 0.16 | H15: 0.22 | I15: 0.08 | J15: 0.01 | K15: 0.48 | L15: 29 | M15: 0.54 | N15: 29 | O15: 0.56 | P15: 30 | Q15: 0.60 | R15: 0.65 | S15: 0.70
A16: 13 | B16: Kerela | C16: 20.5 | D16: 12.6 | E16: 12.5 | F16: 1.7 | G16: 0.09 | H16: 0.10 | I16: 0.02 | J16: 0.05 | K16: 0.26 | L16: 1 | M16: 0.26 | N16: 1 | O16: 0.28 | P16: 1 | Q16: 0.29 | R16: 0.31 | S16: 0.32
A17: 14 | B17: Madhya Pradesh | C17: 39.5 | D17: 19.6 | E17: 53.5 | F17: 0.4 | G17: 0.18 | H17: 0.15 | I17: 0.10 | J17: 0.01 | K17: 0.44 | L17: 25 | M17: 0.48 | N17: 27 | O17: 0.49 | P17: 27 | Q17: 0.52 | R17: 0.54 | S17: 0.57
A18: 15 | B18: Maharashtra | C18: 34.1 | D18: 16.9 | E18: 41.6 | F18: 4 | G18: 0.15 | H18: 0.13 | I18: 0.08 | J18: 0.11 | K18: 0.47 | L18: 27 | M18: 0.47 | N18: 25 | O18: 0.47 | P18: 25 | Q18: 0.47 | R18: 0.48 | S18: 0.49
A19: 16 | B19: Manipur | C19: 28.9 | D19: 6 | E19: 10 | F19: 6 | G19: 0.13 | H19: 0.05 | I19: 0.02 | J19: 0.16 | K19: 0.36 | L19: 8 | M19: 0.39 | N19: 11 | O19: 0.42 | P19: 17 | Q19: 0.45 | R19: 0.49 | S19: 0.52
A20: 17 | B20: Meghalaya | C20: 40.4 | D20: 14.7 | E20: 32.9 | F20: 2.8 | G20: 0.18 | H20: 0.11 | I20: 0.06 | J20: 0.08 | K20: 0.43 | L20: 24 | M20: 0.45 | N20: 23 | O20: 0.46 | P20: 23 | Q20: 0.48 | R20: 0.53 | S20: 0.57
A21: 18 | B21: Mizoram | C21: 27.4 | D21: 5.8 | E21: 24.4 | F21: 5.4 | G21: 0.12 | H21: 0.04 | I21: 0.05 | J21: 0.15 | K21: 0.36 | L21: 9 | M21: 0.38 | N21: 8 | O21: 0.39 | P21: 10 | Q21: 0.42 | R21: 0.44 | S21: 0.47
A22: 19 | B22: Nagaland | C22: 26.2 | D22: 12.9 | E22: 8 | F22: 8.9 | G22: 0.12 | H22: 0.10 | I22: 0.01 | J22: 0.24 | K22: 0.47 | L22: 28 | M22: 0.59 | N22: 30 | O22: 0.56 | P22: 29 | Q22: 0.61 | R22: 0.69 | S22: 0.76
A23: 20 | B23: Odisha | C23: 29.1 | D23: 13.9 | E23: 37.2 | F23: 1.2 | G23: 0.13 | H23: 0.10 | I23: 0.07 | J23: 0.03 | K23: 0.34 | L23: 4 | M23: 0.35 | N23: 6 | O23: 0.36 | P23: 6 | Q23: 0.38 | R23: 0.40 | S23: 0.42
A24: 21 | B24: Punjab | C24: 24.3 | D24: 6.7 | E24: 39.8 | F24: 3.9 | G24: 0.11 | H24: 0.05 | I24: 0.07 | J24: 0.11 | K24: 0.34 | L24: 6 | M24: 0.35 | N24: 5 | O24: 0.34 | P24: 3 | Q24: 0.35 | R24: 0.36 | S24: 0.36
A25: 22 | B25: Rajasthan | C25: 36.8 | D25: 14.3 | E25: 32.4 | F25: 1.4 | G25: 0.17 | H25: 0.11 | I25: 0.06 | J25: 0.04 | K25: 0.37 | L25: 11 | M25: 0.40 | N25: 15 | O25: 0.41 | P25: 15 | Q25: 0.44 | R25: 0.48 | S25: 0.52
A26: 23 | B26: Sikkim | C26: 21.8 | D26: 6.9 | E26: 33 | F26: 5.3 | G26: 0.10 | H26: 0.05 | I26: 0.06 | J26: 0.14 | K26: 0.35 | L26: 7 | M26: 0.37 | N26: 7 | O26: 0.37 | P26: 7 | Q26: 0.39 | R26: 0.42 | S26: 0.45
A27: 24 | B27: Tamil Nadu | C27: 19.7 | D27: 20.7 | E27: 27.3 | F27: 2.9 | G27: 0.09 | H27: 0.16 | I27: 0.05 | J27: 0.08 | K27: 0.37 | L27: 13 | M27: 0.38 | N27: 10 | O27: 0.40 | P27: 11 | Q27: 0.42 | R27: 0.45 | S27: 0.49
A28: 25 | B28: Telangana | C28: 29.3 | D28: 17.9 | E28: 37.8 | F28: 1.5 | G28: 0.13 | H28: 0.13 | I28: 0.07 | J28: 0.04 | K28: 0.38 | L28: 15 | M28: 0.39 | N28: 12 | O28: 0.40 | P28: 13 | Q28: 0.42 | R28: 0.44 | S28: 0.45
A29: 26 | B29: Tripura | C29: 31.9 | D29: 12.8 | E29: 33 | F29: 5.9 | G29: 0.14 | H29: 0.10 | I29: 0.06 | J29: 0.16 | K29: 0.46 | L29: 26 | M29: 0.47 | N29: 26 | O29: 0.47 | P29: 26 | Q29: 0.49 | R29: 0.50 | S29: 0.52
A30: 27 | B30: Uttar Pradesh | C30: 38.8 | D30: 18.5 | E30: 43 | F30: 1 | G30: 0.17 | H30: 0.14 | I30: 0.08 | J30: 0.03 | K30: 0.42 | L30: 23 | M30: 0.46 | N30: 24 | O30: 0.47 | P30: 24 | Q30: 0.50 | R30: 0.53 | S30: 0.56
A31: 28 | B31: Uttarakhand | C31: 29.9 | D31: 5.9 | E31: 32.4 | F31: 2.9 | G31: 0.13 | H31: 0.04 | I31: 0.06 | J31: 0.08 | K31: 0.32 | L31: 2 | M31: 0.33 | N31: 2 | O31: 0.34 | P31: 2 | Q31: 0.36 | R31: 0.39 | S31: 0.42
A32: 29 | B32: West Bengal | C32: 25.3 | D32: 20.1 | E32: 45.7 | F32: 1.7 | G32: 0.11 | H32: 0.15 | I32: 0.09 | J32: 0.05 | K32: 0.40 | L32: 19 | M32: 0.41 | N32: 18 | O32: 0.42 | P32: 16 | Q32: 0.43 | R32: 0.45 | S32: 0.48
A33: 30 | B33: Karnataka | C33: 32.5 | D33: 19.3 | E33: 34.7 | F33: 0.7 | G33: 0.15 | H33: 0.15 | I33: 0.06 | J33: 0.02 | K33: 0.38 | L33: 14 | M33: 0.40 | N33: 16 | O33: 0.42 | P33: 18 | Q33: 0.45 | R33: 0.48 | S33: 0.49

Sheet 4.NFHS-4scores&ranks(districts)
A1: Calculation and Tabulation for computing Linear Aggregation (LA), Geometric Mean (GM) and MANUSH scores and Ranks using NFHS-4 data for Districts in India, 2015-16
A3: S.No. | B3: Districts | C3: State | D3: Stunted (%) | E3: Wasted (%) | F3: Anaemic (%) | G3: Overweight (%) | H3: weighted standardised value_stunting | I3: weighted standardised value_wasting | J3: weighted standardised value_anaemia | K3: weighted standardised value_overweight | L3: LA scores | M3: LA rank | N3: GM scores | O3: GM rank | P3: MANUSH (α=2) scores | Q3: MANUSH (α=2) rank | R3: MANUSH (α=3) scores | S3: MANUSH (α=5) scores | T3: MANUSH (α=10) scores
A4: 1 | B4: Nicobars | C4: Andaman and Nicobars | D4: 20.3 | E4: 7.4 | F4: 50.5 | G4: 4.75 | H4: 0.08 | I4: 0.04 | J4: 0.08 | K4: 0.06 | L4: 0.28 | M4: 50 | N4: 0.27 | O4: 49 | P4: 0.27 | Q4: 35 | R4: 0.27 | S4: 0.27 | T4: 0.28
A5: 2 | B5: North & Middle Andaman | C5: Andaman and Nicobars | D5: 32.5 | E5: 31.7 | F5: 47.3 | G5: 2.13 | H5: 0.13 | I5: 0.19 | J5: 0.08 | K5: 0.03 | L5: 0.46 | M5: 387 | N5: 0.42 | O5: 411 | P5: 0.48 | Q5: 425 | R5: 0.51 | S5: 0.56 | T5: 0.60
A6: 3 | B6: South Andaman | C6: Andaman and Nicobars | D6: 20.1 | E6: 15.6 | F6: 49.6 | G6: 3.03 | H6: 0.08 | I6: 0.09 | J6: 0.08 | K6: 0.04 | L6: 0.31 | M6: 75 | N6: 0.30 | O6: 84 | P6: 0.30 | Q6: 60 | R6: 0.30 | S6: 0.30 | T6: 0.31
A7: 4 | B7: Srikakulam | C7: Andhra Pradesh | D7: 28 | E7: 15.6 | F7: 70.6 | G7: 0.45 | H7: 0.11 | I7: 0.09 | J7: 0.12 | K7: 0.01 | L7: 0.38 | M7: 200 | N7: 0.33 | O7: 145 | P7: 0.36 | Q7: 168 | R7: 0.38 | S7: 0.38 | T7: 0.39
A8: 5 | B8: Vizianagaram | C8: Andhra Pradesh | D8: 36.8 | E8: 18.8 | F8: 78.7 | G8: 0.00 | H8: 0.14 | I8: 0.11 | J8: 0.13 | K8: 0.00 | L8: 0.46 | M8: 397 | N8: 0.39 | O8: 297 | P8: 0.44 | Q8: 346 | R8: 0.45 | S8: 0.46 | T8: 0.47
A9: 6 | B9: Visakhapatnam | C9: Andhra Pradesh | D9: 30.1 | E9: 17.2 | F9: 64.5 | G9: 2.65 | H9: 0.12 | I9: 0.10 | J9: 0.11 | K9: 0.04 | L9: 0.39 | M9: 238 | N9: 0.36 | O9: 236 | P9: 0.38 | Q9: 198 | R9: 0.38 | S9: 0.39 | T9: 0.39
A10: 7 | B10: East Godavari | C10: Andhra Pradesh | D10: 27.7 | E10: 15.3 | F10: 63.1 | G10: 0.64 | H10: 0.11 | I10: 0.09 | J10: 0.11 | K10: 0.01 | L10: 0.35 | M10: 138 | N10: 0.31 | O10: 114 | P10: 0.34 | Q10: 128 | R10: 0.36 | S10: 0.36 | T10: 0.36
A11: 8 | B11: West Godavari | C11: Andhra Pradesh | D11: 28.5 | E11: 14.7 | F11: 55.1 | G11: 1.82 | H11: 0.11 | I11: 0.09 | J11: 0.09 | K11: 0.02 | L11: 0.34 | M11: 121 | N11: 0.32 | O11: 119 | P11: 0.33 | Q11: 110 | R11: 0.34 | S11: 0.35 | T11: 0.36
A12: 9 | B12: Krishna | C12: Andhra Pradesh | D12: 22.6 | E12: 20.7 | F12: 58.1 | G12: 3.91 | H12: 0.09 | I12: 0.12 | J12: 0.10 | K12: 0.05 | L12: 0.38 | M12: 205 | N12: 0.36 | O12: 233 | P12: 0.37 | Q12: 181 | R12: 0.37 | S12: 0.38 | T12: 0.40
A13: 10 | B13: Guntur | C13: Andhra Pradesh | D13: 22.1 | E13: 17.9 | F13: 68.1 | G13: 0.83 | H13: 0.09 | I13: 0.11 | J13: 0.11 | K13: 0.01 | L13: 0.36 | M13: 165 | N13: 0.32 | O13: 128 | P13: 0.35 | Q13: 138 | R13: 0.36 | S13: 0.37 | T13: 0.38
A14: 11 | B14: Prakasam | C14: Andhra Pradesh | D14: 28.2 | E14: 15.3 | F14: 56.3 | G14: 1.52 | H14: 0.11 | I14: 0.09 | J14: 0.09 | K14: 0.02 | L14: 0.34 | M14: 126 | N14: 0.32 | O14: 120 | P14: 0.34 | Q14: 113 | R14: 0.35 | S14: 0.35 | T14: 0.36
A15: 12 | B15: Sri Potti Sriramulu Nellore | C15: Andhra Pradesh | D15: 29.4 | E15: 16.9 | F15: 50.4 | G15: 1.39 | H15: 0.11 | I15: 0.10 | J15: 0.08 | K15: 0.02 | L15: 0.34 | M15: 124 | N15: 0.32 | O15: 129 | P15: 0.34 | Q15: 124 | R15: 0.35 | S15: 0.36 | T15: 0.37
A16: 13 | B16: Y.S.R. | C16: Andhra Pradesh | D16: 36.3 | E16: 17.9 | F16: 55.8 | G16: 0.56 | H16: 0.14 | I16: 0.11 | J16: 0.09 | K16: 0.01 | L16: 0.38 | M16: 210 | N16: 0.35 | O16: 195 | P16: 0.39 | Q16: 229 | R16: 0.41 | S16: 0.42 | T16: 0.44
A17: 14 | B17: Kurnool | C17: Andhra Pradesh | D17: 44.1 | E17: 18.8 | F17: 54.5 | G17: 0.55 | H17: 0.17 | I17: 0.11 | J17: 0.09 | K17: 0.01 | L17: 0.42 | M17: 305 | N17: 0.38 | O17: 288 | P17: 0.44 | Q17: 343 | R17: 0.47 | S17: 0.50 | T17: 0.54
A18: 15 | B18: Anantapur | C18: Andhra Pradesh | D18: 40.3 | E18: 15.2 | F18: 53 | G18: 0.00 | H18: 0.16 | I18: 0.09 | J18: 0.09 | K18: 0.00 | L18: 0.38 | M18: 195 | N18: 0.34 | O18: 163 | P18: 0.39 | Q18: 234 | R18: 0.42 | S18: 0.45 | T18: 0.49
A19: 16 | B19: Chittoor | C19: Andhra Pradesh | D19: 31.4 | E19: 18.1 | F19: 46.6 | G19: 2.44 | H19: 0.12 | I19: 0.11 | J19: 0.08 | K19: 0.03 | L19: 0.35 | M19: 155 | N19: 0.34 | O19: 175 | P19: 0.36 | Q19: 156 | R19: 0.37 | S19: 0.38 | T19: 0.39
A20: 17 | B20: Tawang | C20: Arunanchal Pradesh | D20: 20.5 | E20: 19.4 | F20: 42.4 | G20: 12.18 | H20: 0.08 | I20: 0.12 | J20: 0.07 | K20: 0.16 | L20: 0.45 | M20: 358 | N20: 0.43 | O20: 435 | P20: 0.45 | Q20: 363 | R20: 0.46 | S20: 0.49 | T20: 0.52
A21: 18 | B21: West Kameng | C21: Arunanchal Pradesh | D21: 27.3 | E21: 7.2 | F21: 38.7 | G21: 4.74 | H21: 0.11 | I21: 0.04 | J21: 0.06 | K21: 0.06 | L21: 0.29 | M21: 53 | N21: 0.28 | O21: 57 | P21: 0.28 | Q21: 49 | R21: 0.29 | S21: 0.31 | T21: 0.33
A22: 19 | B22: East Kameng | C22: Arunanchal Pradesh | D22: 42 | E22: 15.1 | F22: 42.5 | G22: 5.85 | H22: 0.16 | I22: 0.09 | J22: 0.07 | K22: 0.08 | L22: 0.42 | M22: 293 | N22: 0.40 | O22: 347 | P22: 0.42 | Q22: 288 | R22: 0.44 | S22: 0.47 | T22: 0.51
A23: 20 | B23: Papumpare | C23: Arunanchal Pradesh | D23: 25.3 | E23: 9.5 | F23: 53.5 | G23: 5.09 | H23: 0.10 | I23: 0.06 | J23: 0.09 | K23: 0.07 | L23: 0.33 | M23: 106 | N23: 0.31 | O23: 112 | P23: 0.31 | Q23: 76 | R23: 0.31 | S23: 0.31 | T23: 0.32
A24: 21 | B24: Upper Subansiri | C24: Arunanchal Pradesh | D24: 28.3 | E24: 12.3 | F24: 49.8 | G24: 7.66 | H24: 0.11 | I24: 0.07 | J24: 0.08 | K24: 0.10 | L24: 0.38 | M24: 202 | N24: 0.37 | O24: 254 | P24: 0.37 | Q24: 176 | R24: 0.36 | S24: 0.36 | T24: 0.36
A25: 22 | B25: West Siang | C25: Arunanchal Pradesh | D25: 34.7 | E25: 19.2 | F25: 32.6 | G25: 5.22 | H25: 0.13 | I25: 0.12 | J25: 0.05 | K25: 0.07 | L25: 0.38 | M25: 211 | N25: 0.37 | O25: 265 | P25: 0.39 | Q25: 219 | R25: 0.40 | S25: 0.41 | T25: 0.43
A26: 23 | B26: East Siang | C26: Arunanchal Pradesh | D26: 21 | E26: 18.1 | F26: 47.4 | G26: 4.17 | H26: 0.08 | I26: 0.11 | J26: 0.08 | K26: 0.06 | L26: 0.33 | M26: 115 | N26: 0.33 | O26: 144 | P26: 0.33 | Q26: 100 | R26: 0.33 | S26: 0.33 | T26: 0.35
A27: 24 | B27: Upper Siang | C27: Arunanchal Pradesh | D27: 24.6 | E27: 29.4 | F27: 44.1 | G27: 5.94 | H27: 0.09 | I27: 0.18 | J27: 0.07 | K27: 0.08 | L27: 0.44 | M27: 342 | N27: 0.43 | O27: 416 | P27: 0.45 | Q27: 367 | R27: 0.47 | S27: 0.51 | T27: 0.56
A28: 25 | B28: Changlang | C28: Arunanchal Pradesh | D28: 23.5 | E28: 16 | F28: 63.5 | G28: 1.27 | H28: 0.09 | I28: 0.10 | J28: 0.11 | K28: 0.02 | L28: 0.34 | M28: 131 | N28: 0.31 | O28: 104 | P28: 0.33 | Q28: 112 | R28: 0.34 | S28: 0.35 | T28: 0.35
A29: 26 | B29: Tirap | C29: Arunanchal Pradesh | D29: 39.7 | E29: 25.2 | F29: 54.8 | G29: 5.34 | H29: 0.15 | I29: 0.15 | J29: 0.09 | K29: 0.07 | L29: 0.48 | M29: 437 | N29: 0.47 | O29: 530 | P29: 0.48 | Q29: 432 | R29: 0.49 | S29: 0.50 | T29: 0.52
A30: 27 | B30: Lower Subansiri | C30: Arunanchal Pradesh | D30: 35.1 | E30: 23.9 | F30: 45.5 | G30: 10.22 | H30: 0.14 | I30: 0.14 | J30: 0.08 | K30: 0.14 | L30: 0.49 | M30: 469 | N30: 0.49 | O30: 584 | P30: 0.49 | Q30: 474 | R30: 0.49 | S30: 0.49 | T30: 0.49
A31: 28 | B31: Kurung Kumey | C31: Arunanchal Pradesh | D31: 38.9 | E31: 23.2 | F31: 44.5 | G31: 5.04 | H31: 0.15 | I31: 0.14 | J31: 0.07 | K31: 0.07 | L31: 0.44 | M31: 355 | N31: 0.43 | O31: 439 | P31: 0.45 | Q31: 365 | R31: 0.46 | S31: 0.48 | T31: 0.49
A32: 29 | B32: Dibang Valley | C32: Arunanchal Pradesh | D32: 38.8 | E32: 7.8 | F32: 31.9 | G32: 7.63 | H32: 0.15 | I32: 0.05 | J32: 0.05 | K32: 0.10 | L32: 0.37 | M32: 185 | N32: 0.35 | O32: 205 | P32: 0.38 | Q32: 210 | R32: 0.41 | S32: 0.44 | T32: 0.47
A33: 30 | B33: Lower Dibang Valley | C33: Arunanchal Pradesh | D33: 22.3 | E33: 21.7 | F33: 59.1 | G33: 6.49 | H33: 0.09 | I33: 0.13 | J33: 0.10 | K33: 0.09 | L33: 0.41 | M33: 279 | N33: 0.40 | O33: 348 | P33: 0.40 | Q33: 252 | R33: 0.40 | S33: 0.40 | T33: 0.42
A34: 31 | B34: Lohit | C34: Arunanchal Pradesh | D34: 27 | E34: 21.4 | F34: 56.8 | G34: 3.63 | H34: 0.10 | I34: 0.13 | J34: 0.09 | K34: 0.05 | L34: 0.39 | M34: 239 | N34: 0.38 | O34: 271 | P34: 0.39 | Q34: 217 | R34: 0.39 | S34: 0.40 | T34: 0.41
A35: 32 | B35: Anjaw | C35: Arunanchal Pradesh | D35: 21 | E35: 18.3 | F35: 53.7 | G35: 5.68 | H35: 0.08 | I35: 0.11 | J35: 0.09 | K35: 0.08 | L35: 0.37 | M35: 171 | N35: 0.36 | O35: 220 | P35: 0.35 | Q35: 146 | R35: 0.35 | S35: 0.35 | T35: 0.35
A36: 33 | B36: Kokrajhar | C36: Assam | D36: 30.6 | E36: 15.7 | F36: 40.4 | G36: 1.41 | H36: 0.12 | I36: 0.09 | J36: 0.07 | K36: 0.02 | L36: 0.31 | M36: 82 | N36: 0.30 | O36: 90 | P36: 0.33 | Q36: 99 | R36: 0.34 | S36: 0.36 | T36: 0.38
A37: 34 | B37: Dhubri | C37: Assam | D37: 47.4 | E37: 22.2 | F37: 42.6 | G37: 5.03 | H37: 0.18 | I37: 0.13 | J37: 0.07 | K37: 0.07 | L37: 0.48 | M37: 433 | N37: 0.46 | O37: 497 | P37: 0.48 | Q37: 445 | R37: 0.51 | S37: 0.54 | T37: 0.58
A38: 35 | B38: Goalpara | C38: Assam | D38: 42.7 | E38: 22.1 | F38: 36 | G38: 2.57 | H38: 0.16 | I38: 0.13 | J38: 0.06 | K38: 0.03 | L38: 0.42 | M38: 291 | N38: 0.39 | O38: 316 | P38: 0.44 | Q38: 337 | R38: 0.46 | S38: 0.50 | T38: 0.52
A39: 36 | B39: Barpeta | C39: Assam | D39: 41.7 | E39: 16.6 | F39: 30.2 | G39: 2.44 | H39: 0.16 | I39: 0.10 | J39: 0.05 | K39: 0.03 | L39: 0.37 | M39: 183 | N39: 0.34 | O39: 182 | P39: 0.39 | Q39: 222 | R39: 0.42 | S39: 0.46 | T39: 0.51
A40: 37 | B40: Morigaon | C40: Assam | D40: 38.4 | E40: 10.3 | F40: 38.2 | G40: 1.20 | H40: 0.15 | I40: 0.06 | J40: 0.06 | K40: 0.02 | L40: 0.32 | M40: 88 | N40: 0.29 | O40: 75 | P40: 0.34 | Q40: 121 | R40: 0.38 | S40: 0.42 | T40: 0.47
A41: 38 | B41: Nagaon | C41: Assam | D41: 38.4 | E41: 13.3 | F41: 35.4 | G41: 0.27 | H41: 0.15 | I41: 0.08 | J41: 0.06 | K41: 0.00 | L41: 0.32 | M41: 94 | N41: 0.29 | O41: 79 | P41: 0.35 | Q41: 135 | R41: 0.38 | S41: 0.42 | T41: 0.47
A42: 39 | B42: Sonitpur | C42: Assam | D42: 28.7 | E42: 21.5 | F42: 27 | G42: 2.34 | H42: 0.11 | I42: 0.13 | J42: 0.05 | K42: 0.03 | L42: 0.33 | M42: 108 | N42: 0.32 | O42: 124 | P42: 0.35 | Q42: 142 | R42: 0.37 | S42: 0.40 | T42: 0.42
A43: 40 | B43: Lakhimpur | C43: Assam | D43: 29.3 | E43: 11.2 | F43: 31.8 | G43: 0.77 | H43: 0.11 | I43: 0.07 | J43: 0.05 | K43: 0.01 | L43: 0.26 | M43: 33 | N43: 0.24 | O43: 30 | P43: 0.28 | Q43: 40 | R43: 0.30 | S43: 0.33 | T43: 0.36
A44: 41 | B44: Dhemaji | C44: Assam | D44: 35.5 | E44: 6.2 | F44: 38.9 | G44: 0.49 | H44: 0.14 | I44: 0.04 | J44: 0.06 | K44: 0.01 | L44: 0.27 | M44: 42 | N44: 0.25 | O44: 32 | P44: 0.31 | Q44: 67 | R44: 0.34 | S44: 0.39 | T44: 0.43
A45: 42 | B45: Tinsukia | C45: Assam | D45: 36 | E45: 14.8 | F45: 42.6 | G45: 2.82 | H45: 0.14 | I45: 0.09 | J45: 0.07 | K45: 0.04 | L45: 0.35 | M45: 149 | N45: 0.34 | O45: 166 | P45: 0.36 | Q45: 157 | R45: 0.38 | S45: 0.40 | T45: 0.44
A46: 43 | B46: Dibrugarh | C46: Assam | D46: 33.3 | E46: 22.4 | F46: 52.6 | G46: 3.28 | H46: 0.13 | I46: 0.14 | J46: 0.09 | K46: 0.04 | L46: 0.41 | M46: 276 | N46: 0.40 | O46: 321 | P46: 0.41 | Q46: 272 | R46: 0.42 | S46: 0.44 | T46: 0.45
A47: 44 | B47: Sivasagar | C47: Assam | D47: 35.5 | E47: 8.3 | F47: 33.5 | G47: 3.22 | H47: 0.14 | I47: 0.05 | J47: 0.06 | K47: 0.04 | L47: 0.30 | M47: 71 | N47: 0.29 | O47: 69 | P47: 0.32 | Q47: 84 | R47: 0.35 | S47: 0.39 | T47: 0.43
A48: 45 | B48: Jorhat | C48: Assam | D48: 25.5 | E48: 14.8 | F48: 38 | G48: 1.57 | H48: 0.10 | I48: 0.09 | J48: 0.06 | K48: 0.02 | L48: 0.28 | M48: 47 | N48: 0.27 | O48: 51 | P48: 0.29 | Q48: 55 | R48: 0.30 | S48: 0.31 | T48: 0.32
A49: 46 | B49: Golaghat | C49: Assam | D49: 32.6 | E49: 13.9 | F49: 33.3 | G49: 3.66 | H49: 0.13 | I49: 0.08 | J49: 0.06 | K49: 0.05 | L49: 0.32 | M49: 103 | N49: 0.31 | O49: 118 | P49: 0.33 | Q49: 103 | R49: 0.34 | S49: 0.37 | T49: 0.40
A50: 47 | B50: Karbi Anglong | C50: Assam | D50: 28.1 | E50: 18.7 | F50: 24.6 | G50: 0.68 | H50: 0.11 | I50: 0.11 | J50: 0.04 | K50: 0.01 | L50: 0.29 | M50: 54 | N50: 0.27 | O50: 50 | P50: 0.32 | Q50: 83 | R50: 0.34 | S50: 0.36 | T50: 0.37
A51: 48 | B51: Dima Hasao | C51: Assam | D51: 34.7 | E51: 6.3 | F51: 28.9 | G51: 1.47 | H51: 0.13 | I51: 0.04 | J51: 0.05 | K51: 0.02 | L51: 0.26 | M51: 34 | N51: 0.24 | O51: 26 | P51: 0.29 | Q51: 54 | R51: 0.33 | S51: 0.38 | T51: 0.42
A52: 49 | B52: Cachar | C52: Assam | D52: 36.3 | E52: 30.6 | F52: 30.9 | G52: 4.02 | H52: 0.14 | I52: 0.18 | J52: 0.05 | K52: 0.05 | L52: 0.45 | M52: 378 | N52: 0.43 | O52: 431 | P52: 0.48 | Q52: 424 | R52: 0.51 | S52: 0.55 | T52: 0.59
A53: 50 | B53: Karimganj | C53: Assam | D53: 42.3 | E53: 17.6 | F53: 24.6 | G53: 1.77 | H53: 0.16 | I53: 0.11 | J53: 0.04 | K53: 0.02 | L53: 0.36 | M53: 167 | N53: 0.33 | O53: 160 | P53: 0.39 | Q53: 232 | R53: 0.43 | S53: 0.47 | T53: 0.51
A54: 51 | B54: Hailakandi | C54: Assam | D54: 38.1 | E54: 19.1 | F54: 29 | G54: 1.59 | H54: 0.15 | I54: 0.12 | J54: 0.05 | K54: 0.02 | L54: 0.35 | M54: 151 | N54: 0.33 | O54: 151 | P54: 0.38 | Q54: 205 | R54: 0.41 | S54: 0.44 | T54: 0.47
A55: 52 | B55: Bongaigaon | C55: Assam | D55: 39.1 | E55: 23.6 | F55: 34.5 | G55: 6.13 | H55: 0.15 | I55: 0.14 | J55: 0.06 | K55: 0.08 | L55: 0.44 | M55: 350 | N55: 0.43 | O55: 441 | P55: 0.45 | Q55: 377 | R55: 0.46 | S55: 0.48 | T55: 0.50
A56: 53 | B56: Chirang | C56: Assam | D56: 40.1 | E56: 13 | F56: 35.6 | G56: 2.54 | H56: 0.15 | I56: 0.08 | J56: 0.06 | K56: 0.03 | L56: 0.35 | M56: 143 | N56: 0.33 | O56: 146 | P56: 0.36 | Q56: 171 | R56: 0.40 | S56: 0.44 | T56: 0.49
A57: 54 | B57: Kamrup | C57: Assam | D57: 33.3 | E57: 18.8 | F57: 33.7 | G57: 1.00 | H57: 0.13 | I57: 0.11 | J57: 0.06 | K57: 0.01 | L57: 0.33 | M57: 111 | N57: 0.31 | O57: 106 | P57: 0.35 | Q57: 147 | R57: 0.38 | S57: 0.40 | T57: 0.42
A58: 55 | B58: Kamrup Metropolitan | C58: Assam | D58: 24.6 | E58: 11 | F58: 34.5 | G58: 2.00 | H58: 0.09 | I58: 0.07 | J58: 0.06 | K58: 0.03 | L58: 0.25 | M58: 25 | N58: 0.25 | O58: 31 | P58: 0.26 | Q58: 27 | R58: 0.27 | S58: 0.28 | T58: 0.30
A59: 56 | B59: Nalbari | C59: Assam | D59: 26.8 | E59: 15.3 | F59: 45.3 | G59: 1.76 | H59: 0.10 | I59: 0.09 | J59: 0.08 | K59: 0.02 | L59: 0.31 | M59: 77 | N59: 0.30 | O59: 83 | P59: 0.31 | Q59: 75 | R59: 0.32 | S59: 0.33 | T59: 0.34
A60: 57 | B60: Baksa | C60: Assam | D60: 32.4 | E60: 10.5 | F60: 39 | G60: 2.25 | H60: 0.12 | I60: 0.06 | J60: 0.07 | K60: 0.03 | L60: 0.30 | M60: 69 | N60: 0.28 | O60: 63 | P60: 0.31 | Q60: 70 | R60: 0.33 | S60: 0.36 | T60: 0.39
A61: 58 | B61: Darrang | C61: Assam | D61: 43.5 | E61: 19.2 | F61: 45.4 | G61: 3.00 | H61: 0.17 | I61: 0.12 | J61: 0.08 | K61: 0.04 | L61: 0.43 | M61: 308 | N61: 0.40 | O61: 332 | P61: 0.43 | Q61: 326 | R61: 0.46 | S61: 0.49 | T61: 0.53
A62: 59 | B62: Udalguri | C62: Assam | D62: 39.1 | E62: 18.3 | F62: 39.7 | G62: 4.01 | H62: 0.15 | I62: 0.11 | J62: 0.07 | K62: 0.05 | L62: 0.40 | M62: 245 | N62: 0.38 | O62: 285 | P62: 0.40 | Q62: 255 | R62: 0.42 | S62: 0.45 | T62: 0.48
A63: 60 | B63: Pashchim Champaran | C63: Bihar | D63: 43.6 | E63: 21.7 | F63: 62.3 | G63: 0.82 | H63: 0.17 | I63: 0.13 | J63: 0.10 | K63: 0.01 | L63: 0.46 | M63: 390 | N63: 0.41 | O63: 373 | P63: 0.46 | Q63: 403 | R63: 0.49 | S63: 0.51 | T63: 0.53
A64: 61 | B64: Purba Champaran | C64: Bihar | D64: 47.2 | E64: 18 | F64: 65.7 | G64: 0.84 | H64: 0.18 | I64: 0.11 | J64: 0.11 | K64: 0.01 | L64: 0.47 | M64: 408 | N64: 0.41 | O64: 367 | P64: 0.47 | Q64: 410 | R64: 0.50 | S64: 0.53 | T64: 0.57
A65: 62 | B65: Sheohar | C65: Bihar | D65: 53 | E65: 14.8 | F65: 63.7 | G65: 1.34 | H65: 0.20 | I65: 0.09 | J65: 0.11 | K65: 0.02 | L65: 0.49 | M65: 472 | N65: 0.42 | O65: 392 | P65: 0.48 | Q65: 446 | R65: 0.53 | S65: 0.59 | T65: 0.64
A66: 63 | B66: Sitamarhi | C66: Bihar | D66: 57.3 | E66: 15.8 | F66: 69 | G66: 2.09 | H66: 0.22 | I66: 0.10 | J66: 0.12 | K66: 0.03 | L66: 0.56 | M66: 586 | N66: 0.46 | O66: 509 | P66: 0.52 | Q66: 556 | R66: 0.57 | S66: 0.63 | T66: 0.70
A67: 64 | B67: Madhubani | C67: Bihar | D67: 51.8 | E67: 19.1 | F67: 62.9 | G67: 1.81 | H67: 0.20 | I67: 0.12 | J67: 0.11 | K67: 0.02 | L67: 0.51 | M67: 494 | N67: 0.44 | O67: 473 | P67: 0.50 | Q67: 484 | R67: 0.53 | S67: 0.58 | T67: 0.63
A68: 65 | B68: Supaul | C68: Bihar | D68: 48.1 | E68: 20.9 | F68: 72.4 | G68: 0.47 | H68: 0.19 | I68: 0.13 | J68: 0.12 | K68: 0.01 | L68: 0.51 | M68: 501 | N68: 0.44 | O68: 455 | P68: 0.50 | Q68: 487 | R68: 0.52 | S68: 0.55 | T68: 0.59
A69: 66 | B69: Araria | C69: Bihar | D69: 48.4 | E69: 22.8 | F69: 61.8 | G69: 1.42 | H69: 0.19 | I69: 0.14 | J69: 0.10 | K69: 0.02 | L69: 0.50 | M69: 478 | N69: 0.45 | O69: 475 | P69: 0.50 | Q69: 483 | R69: 0.52 | S69: 0.55 | T69: 0.59
A70: 67 | B70: Kishanganj | C70: Bihar | D70: 46.9 | E70: 22.8 | F70: 65.2 | G70: 2.07 | H70: 0.18 | I70: 0.14 | J70: 0.11 | K70: 0.03 | L70: 0.50 | M70: 486 | N70: 0.46 | O70: 494 | P70: 0.50 | Q70: 478 | R70: 0.52 | S70: 0.54 | T70: 0.57
A71: 68 | B71: Purnia | C71: Bihar | D71: 52.1 | E71: 20.8 | F71: 66.5 | G71: 1.34 | H71: 0.20 | I71: 0.13 | J71: 0.11 | K71: 0.02 | L71: 0.52 | M71: 538 | N71: 0.46 | O71: 496 | P71: 0.51 | Q71: 529 | R71: 0.55 | S71: 0.59 | T71: 0.63
A72: 69 | B72: Katihar | C72: Bihar | D72: 49.2 | E72: 20.7 | F72: 61.3 | G72: 1.63 | H72: 0.19 | I72: 0.12 | J72: 0.10 | K72: 0.02 | L72: 0.49 | M72: 464 | N72: 0.44 | O72: 456 | P72: 0.49 | Q72: 457 | R72: 0.52 | S72: 0.55 | T72: 0.60
A73: 70 | B73: Madhepura | C73: Bihar | D73: 51.8 | E73: 24.2 | F73: 61.4 | G73: 1.09 | H73: 0.20 | I73: 0.15 | J73: 0.10 | K73: 0.01 | L73: 0.52 | M73: 541 | N73: 0.46 | O73: 518 | P73: 0.52 | Q73: 555 | R73: 0.56 | S73: 0.59 | T73: 0.63
A74: 71 | B74: Saharsa | C74: Bihar | D74: 43.9 | E74: 24 | F74: 68.4 | G74: 2.05 | H74: 0.17 | I74: 0.14 | J74: 0.11 | K74: 0.03 | L74: 0.50 | M74: 484 | N74: 0.46 | O74: 498 | P74: 0.49 | Q74: 469 | R74: 0.51 | S74: 0.53 | T74: 0.54
A75: 72 | B75: Darbhanga | C75: Bihar | D75: 49 | E75: 16.6 | F75: 69.9 | G75: 0.39 | H75: 0.19 | I75: 0.10 | J75: 0.12 | K75: 0.01 | L75: 0.48 | M75: 446 | N75: 0.41 | O75: 364 | P75: 0.48 | Q75: 427 | R75: 0.51 | S75: 0.55 | T75: 0.60
A76: 73 | B76: Muzaffarpur | C76: Bihar | D76: 47.9 | E76: 17.5 | F76: 58.5 | G76: 1.23 | H76: 0.18 | I76: 0.11 | J76: 0.10 | K76: 0.02 | L76: 0.46 | M76: 385 | N76: 0.40 | O76: 351 | P76: 0.46 | Q76: 392 | R76: 0.49 | S76: 0.53 | T76: 0.58
A77: 74 | B77: Gopalganj | C77: Bihar | D77: 35.6 | E77: 16.5 | F77: 63.1 | G77: 1.87 | H77: 0.14 | I77: 0.10 | J77: 0.11 | K77: 0.03 | L77: 0.40 | M77: 255 | N77: 0.37 | O77: 246 | P77: 0.39 | Q77: 235 | R77: 0.41 | S77: 0.42 | T77: 0.44
A78: 75 | B78: Siwan | C78: Bihar | D78: 37.9 | E78: 15 | F78: 63.1 | G78: 1.50 | H78: 0.15 | I78: 0.09 | J78: 0.11 | K78: 0.02 | L78: 0.40 | M78: 256 | N78: 0.36 | O78: 234 | P78: 0.40 | Q78: 244 | R78: 0.41 | S78: 0.44 | T78: 0.46
A79: 76 | B79: Saran | C79: Bihar | D79: 46.1 | E79: 18.1 | F79: 61.9 | G79: 1.07 | H79: 0.18 | I79: 0.11 | J79: 0.10 | K79: 0.01 | L79: 0.46 | M79: 380 | N79: 0.40 | O79: 352 | P79: 0.46 | Q79: 386 | R79: 0.48 | S79: 0.52 | T79: 0.56
A80: 77 | B80: Vaishali | C80: Bihar | D80: 53.7 | E80: 15.1 | F80: 67.4 | G80: 0.66 | H80: 0.21 | I80: 0.09 | J80: 0.11 | K80: 0.01 | L80: 0.51 | M80: 495 | N80: 0.42 | O80: 396 | P80: 0.49 | Q80: 475 | R80: 0.54 | S80: 0.59 | T80: 0.65
A81: 78 | B81: Samastipur | C81: Bihar | D81: 49.2 | E81: 18.4 | F81: 65.4 | G81: 1.09 | H81: 0.19 | I81: 0.11 | J81: 0.11 | K81: 0.01 | L81: 0.49 | M81: 451 | N81: 0.42 | O81: 414 | P81: 0.48 | Q81: 436 | R81: 0.51 | S81: 0.55 | T81: 0.60
A82: 79 | B82: Begusarai | C82: Bihar | D82: 44.9 | E82: 18.4 | F82: 62.7 | G82: 2.02 | H82: 0.17 | I82: 0.11 | J82: 0.10 | K82: 0.03 | L82: 0.46 | M82: 389 | N82: 0.42 | O82: 381 | P82: 0.45 | Q82: 384 | R82: 0.48 | S82: 0.51 | T82: 0.55
A83: 80 | B83: Khagaria | C83: Bihar | D83: 49.8 | E83: 17 | F83: 63.4 | G83: 1.37 | H83: 0.19 | I83: 0.10 | J83: 0.11 | K83: 0.02 | L83: 0.48 | M83: 432 | N83: 0.42 | O83: 395 | P83: 0.47 | Q83: 423 | R83: 0.51 | S83: 0.55 | T83: 0.61
A84: 81 | B84: Bhagalpur | C84: Bihar | D84: 46.6 | E84: 23.1 | F84: 70.1 | G84: 1.26 | H84: 0.18 | I84: 0.14 | J84: 0.12 | K84: 0.02 | L84: 0.51 | M84: 503 | N84: 0.45 | O84: 490 | P84: 0.50 | Q84: 498 | R84: 0.52 | S84: 0.54 | T84: 0.57
A85: 82 | B85: Banka | C85: Bihar | D85: 49.6 | E85: 26 | F85: 70.4 | G85: 1.56 | H85: 0.19 | I85: 0.16 | J85: 0.12 | K85: 0.02 | L85: 0.55 | M85: 575 | N85: 0.49 | O85: 572 | P85: 0.54 | Q85: 578 | R85: 0.56 | S85: 0.58 | T85: 0.61
A86: 83 | B86: Munger | C86: Bihar | D86: 46.6 | E86: 21.5 | F86: 62.5 | G86: 1.05 | H86: 0.18 | I86: 0.13 | J86: 0.10 | K86: 0.01 | L86: 0.48 | M86: 424 | N86: 0.43 | O86: 425 | P86: 0.48 | Q86: 434 | R86: 0.51 | S86: 0.53 | T86: 0.57
A87: 84 | B87: Lakhisarai | C87: Bihar | D87: 50.6 | E87: 20.1 | F87: 66.3 | G87: 0.81 | H87: 0.20 | I87: 0.12 | J87: 0.11 | K87: 0.01 | L87: 0.50 | M87: 489 | N87: 0.44 | O87: 453 | P87: 0.50 | Q87: 490 | R87: 0.53 | S87: 0.57 | T87: 0.62
A88: 85 | B88: Sheikhpura | C88: Bihar | D88: 46.4 | E88: 28.9 | F88: 66 | G88: 0.54 | H88: 0.18 | I88: 0.17 | J88: 0.11 | K88: 0.01 | L88: 0.53 | M88: 550 | N88: 0.47 | O88: 535 | P88: 0.53 | Q88: 573 | R88: 0.56 | S88: 0.58 | T88: 0.60
A89: 86 | B89: Nalanda | C89: Bihar | D89: 54.1 | E89: 24.3 | F89: 59 | G89: 0.88 | H89: 0.21 | I89: 0.15 | J89: 0.10 | K89: 0.01 | L89: 0.54 | M89: 562 | N89: 0.47 | O89: 523 | P89: 0.53 | Q89: 575 | R89: 0.57 | S89: 0.61 | T89: 0.66
A90: 87 | B90: Patna | C90: Bihar | D90: 43.5 | E90: 28.5 | F90: 51.6 | G90: 0.78 | H90: 0.17 | I90: 0.17 | J90: 0.09 | K90: 0.01 | L90: 0.48 | M90: 429 | N90: 0.44 | O90: 445 | P90: 0.50 | Q90: 492 | R90: 0.53 | S90: 0.56 | T90: 0.57
A91: 88 | B91: Bhojpur | C91: Bihar | D91: 43.5 | E91: 26 | F91: 70.6 | G91: 1.19 | H91: 0.17 | I91: 0.16 | J91: 0.12 | K91: 0.02 | L91: 0.51 | M91: 506 | N91: 0.46 | O91: 508 | P91: 0.51 | Q91: 509 | R91: 0.53 | S91: 0.54 | T91: 0.55
A92: 89 | B92: Buxar | C92: Bihar | D92: 43.9 | E92: 19.6 | F92: 59.8 | G92: 1.56 | H92: 0.17 | I92: 0.12 | J92: 0.10 | K92: 0.02 | L92: 0.45 | M92: 365 | N92: 0.41 | O92: 358 | P92: 0.45 | Q92: 374 | R92: 0.47 | S92: 0.50 | T92: 0.54
A93: 90 | B93: Kaimur (Bhabua) | C93: Bihar | D93: 53.8 | E93: 21.4 | F93: 63 | G93: 0.93 | H93: 0.21 | I93: 0.13 | J93: 0.11 | K93: 0.01 | L93: 0.53 | M93: 549 | N93: 0.45 | O93: 492 | P93: 0.52 | Q93: 548 | R93: 0.56 | S93: 0.60 | T93: 0.65
A94: 91 | B94: Rohtas | C94: Bihar | D94: 48.5 | E94: 19.9 | F94: 61.3 | G94: 0.98 | H94: 0.19 | I94: 0.12 | J94: 0.10 | K94: 0.01 | L94: 0.48 | M94: 421 | N94: 0.42 | O94: 399 | P94: 0.48 | Q94: 430 | R94: 0.51 | S94: 0.55 | T94: 0.59
A95: 92 | B95: Gaya | C95: Bihar | D95: 52.9 | E95: 25.6 | F95: 59 | G95: 1.04 | H95: 0.20 | I95: 0.15 | J95: 0.10 | K95: 0.01 | L95: 0.53 | M95: 561 | N95: 0.47 | O95: 538 | P95: 0.54 | Q95: 577 | R95: 0.57 | S95: 0.61 | T95: 0.65
A96: 93 | B96: Nawada | C96: Bihar | D96: 48.4 | E96: 21.4 | F96: 56.4 | G96: 1.41 | H96: 0.19 | I96: 0.13 | J96: 0.09 | K96: 0.02 | L96: 0.48 | M96: 418 | N96: 0.43 | O96: 427 | P96: 0.48 | Q96: 440 | R96: 0.51 | S96: 0.55 | T96: 0.59
A97: 94 | B97: Jamui | C97: Bihar | D97: 45.9 | E97: 29.4 | F97: 61.3 | G97: 1.26 | H97: 0.18 | I97: 0.18 | J97: 0.10 | K97: 0.02 | L97: 0.52 | M97: 537 | N97: 0.47 | O97: 547 | P97: 0.53 | Q97: 564 | R97: 0.56 | S97: 0.58 | T97: 0.60
A98: 95 | B98: Jehanabad | C98: Bihar | D98: 52.1 | E98: 19.6 | F98: 61.4 | G98: 0.83 | H98: 0.20 | I98: 0.12 | J98: 0.10 | K98: 0.01 | L98: 0.50 | M98: 483 | N98: 0.43 | O98: 440 | P98: 0.50 | Q98: 488 | R98: 0.54 | S98: 0.58 | T98: 0.63
A99: 96 | B99: Arwal | C99: Bihar | D99: 50.2 | E99: 30.7 | F99: 66.8 | G99: 1.02 | H99: 0.19 | I99: 0.19 | J99: 0.11 | K99: 0.01 | L99: 0.57 | M99: 595 | N99: 0.50 | O99: 597 | P99: 0.57 | Q99: 607 | R99: 0.60 | S99: 0.62 | T99: 0.64
A100: 97 | B100: Aurangabad | C100: Bihar | D100: 48.3 | E100: 24.8 | F100: 53.4 | G100: 1.99 | H100: 0.19 | I100: 0.15 | J100: 0.09 | K100: 0.03 | L100: 0.49 | M100: 470 | N100: 0.45 | O100: 488 | P100: 0.50 | Q100: 500 | R100: 0.53 | S100: 0.56 | T100: 0.59
A101: 98 | B101: Chandigarh | C101: Chandigarh | D101: 29.19 | E101: 11.44 | F101: 73.14 | G101: 2.21 | H101: 0.11 | I101: 0.07 | J101: 0.12 | K101: 0.03 | L101: 0.39 | M101: 229 | N101: 0.33 | O101: 156 | P101: 0.36 | Q101: 149 | R101: 0.37 | S101: 0.39 | T101: 0.40
A102: 99 | B102: Bilaspur | C102: Chhattisgarh | D102: 34.1 | E102: 26.8 | F102: 31.1 | G102: 1.86 | H102: 0.13 | I102: 0.16 | J102: 0.05 | K102: 0.03 | L102: 0.39 | M102: 242 | N102: 0.37 | O102: 256 | P102: 0.42 | Q102: 301 | R102: 0.46 | S102: 0.49 | T102: 0.52
A103: 100 | B103: Korea (Koriya) | C103: Chhattisgarh | D103: 30.6 | E103: 29 | F103: 33.7 | G103: 1.40 | H103: 0.12 | I103: 0.17 | J103: 0.06 | K103: 0.02 | L103: 0.40 | M103: 248 | N103: 0.37 | O103: 250 | P103: 0.43 | Q103: 318 | R103: 0.47 | S103: 0.51 | T103: 0.55
A104: 101 | B104: Surguja | C104: Chhattisgarh | D104: 32.3 | E104: 22.3 | F104: 38.6 | G104: 1.08 | H104: 0.12 | I104: 0.13 | J104: 0.06 | K104: 0.01 | L104: 0.36 | M104: 156 | N104: 0.34 | O104: 169 | P104: 0.38 | Q104: 209 | R104: 0.40 | S104: 0.42 | T104: 0.44
A105: 102 | B105: Jashpur | C105: Chhattisgarh | D105: 35.1 | E105: 18.6 | F105: 31.1 | G105: 1.34 | H105: 0.14 | I105: 0.11 | J105: 0.05 | K105: 0.02 | L105: 0.34 | M105: 122 | N105: 0.32 | O105: 125 | P105: 0.36 | Q105: 158 | R105: 0.39 | S105: 0.41 | T105: 0.43
A106: 103 | B106: Korba | C106: Chhattisgarh | D106: 33.2 | E106: 25.7 | F106: 39.1 | G106: 0.73 | H106: 0.13 | I106: 0.16 | J106: 0.07 | K106: 0.01 | L106: 0.38 | M106: 224 | N106: 0.36 | O106: 222 | P106: 0.41 | Q106: 277 | R106: 0.44 | S106: 0.47 | T106: 0.50
A107: 104 | B107: Janjgir - Champa | C107: Chhattisgarh | D107: 36.8 | E107: 21.7 | F107: 35.6 | G107: 0.00 | H107: 0.14 | I107: 0.13 | J107: 0.06 | K107: 0.00 | L107: 0.36 | M107: 164 | N107: 0.33 | O107: 153 | P107: 0.39 | Q107: 240 | R107: 0.42 | S107: 0.45 | T107: 0.46
A108: 105 | B108: Kabirdham | C108: Chhattisgarh | D108: 40.4 | E108: 17.6 | F108: 37.6 | G108: 3.51 | H108: 0.16 | I108: 0.11 | J108: 0.06 | K108: 0.05 | L108: 0.39 | M108: 235 | N108: 0.37 | O108: 260 | P108: 0.40 | Q108: 250 | R108: 0.42 | S108: 0.45 | T108: 0.49
A109: 106 | B109: Rajnandgaon | C109: Chhattisgarh | D109: 48.8 | E109: 17.2 | F109: 29.7 | G109: 5.67 | H109: 0.19 | I109: 0.10 | J109: 0.05 | K109: 0.08 | L109: 0.45 | M109: 369 | N109: 0.42 | O109: 390 | P109: 0.46 | Q109: 387 | R109: 0.49 | S109: 0.54 | T109: 0.59
A110: 107 | B110: Durg | C110: Chhattisgarh | D110: 34.3 | E110: 21.2 | F110: 44.4 | G110: 0.98 | H110: 0.13 | I110: 0.13 | J110: 0.07 | K110: 0.01 | L110: 0.37 | M110: 182 | N110: 0.35 | O110: 192 | P110: 0.39 | Q110: 223 | R110: 0.41 | S110: 0.43 | T110: 0.44
A111: 108 | B111: Raipur | C111: Chhattisgarh | D111: 38.3 | E111: 19.5 | F111: 47.1 | G111: 11.13 | H111: 0.15 | I111: 0.12 | J111: 0.08 | K111: 0.15 | L111: 0.50 | M111: 479 | N111: 0.49 | O111: 587 | P111: 0.50 | Q111: 479 | R111: 0.50 | S111: 0.50 | T111: 0.51
A112: 109 | B112: Mahasamund | C112: Chhattisgarh | D112: 43.7 | E112: 19.8 | F112: 38 | G112: 1.19 | H112: 0.17 | I112: 0.12 | J112: 0.06 | K112: 0.02 | L112: 0.40 | M112: 258 | N112: 0.37 | O112: 247 | P112: 0.42 | Q112: 308 | R112: 0.46 | S112: 0.49 | T112: 0.53
A113: 110 | B113: Dhamtari | C113: Chhattisgarh | D113: 34.2 | E113: 27 | F113: 52.7 | G113: 1.21 | H113: 0.13 | I113: 0.16 | J113: 0.09 | K113: 0.02 | L113: 0.43 | M113: 316 | N113: 0.40 | O113: 331 | P113: 0.45 | Q113: 362 | R113: 0.47 | S113: 0.49 | T113: 0.52
A114: 111 | B114: Uttar Bastar Kanker | C114: Chhattisgarh | D114: 36.3 | E114: 30.9 | F114: 61.9 | G114: 1.95 | H114: 0.14 | I114: 0.19 | J114: 0.10 | K114: 0.03 | L114: 0.49 | M114: 471 | N114: 0.46 | O114: 499 | P114: 0.50 | Q114: 499 | R114: 0.53 | S114: 0.56 | T114: 0.59
A115: 112 | B115: Bastar | C115: Chhattisgarh | D115: 41.6 | E115: 33.9 | F115: 59.4 | G115: 0.92 | H115: 0.16 | I115: 0.20 | J115: 0.10 | K115: 0.01 | L115: 0.53 | M115: 552 | N115: 0.48 | O115: 552 | P115: 0.54 | Q115: 588 | R115: 0.58 | S115: 0.61 | T115: 0.65
A116: 113 | B116: Narayanpur | C116: Chhattisgarh | D116: 49 | E116: 30.5 | F116: 48.2 | G116: 0.80 | H116: 0.19 | I116: 0.18 | J116: 0.08 | K116: 0.01 | L116: 0.52 | M116: 525 | N116: 0.46 | O116: 520 | P116: 0.54 | Q116: 583 | R116: 0.58 | S116: 0.61 | T116: 0.63
A117: 114 | B117: Dakshin Bastar Dantewada | C117: Chhattisgarh | D117: 44.2 | E117: 32.3 | F117: 71.3 | G117: 2.81 | H117: 0.17 | I117: 0.19 | J117: 0.12 | K117: 0.04 | L117: 0.57 | M117: 598 | N117: 0.52 | O117: 613 | P117: 0.56 | Q117: 602 | R117: 0.58 | S117: 0.61 | T117: 0.63
A118: 115 | B118: Bijapur | C118: Chhattisgarh | D118: 48.2 | E118: 26 | F118: 51.3 | G118: 7.67 | H118: 0.19 | I118: 0.16 | J118: 0.09 | K118: 0.10 | L118: 0.55 | M118: 573 | N118: 0.53 | O118: 618 | P118: 0.54 | Q118: 586 | R118: 0.55 | S118: 0.57 | T118: 0.60
A119: 116 | B119: Raigarh | C119: Chhattisgarh | D119: 39.2 | E119: 19.4 | F119: 38.8 | G119: 1.21 | H119: 0.15 | I119: 0.12 | J119: 0.06 | K119: 0.02 | L119: 0.37 | M119: 193 | N119: 0.35 | O119: 198 | P119: 0.40 | Q119: 242 | R119: 0.42 | S119: 0.45 | T119: 0.48
A120: 117 | B120: Diu | C120: Daman and Diu | D120: 37.3 | E120: 17.1 | F120: 72.1 | G120: 1.53 | H120: 0.14 | I120: 0.10 | J120: 0.12 | K120: 0.02 | L120: 0.44 | M120: 344 | N120: 0.39 | O120: 303 | P120: 0.42 | Q120: 295 | R120: 0.44 | S120: 0.45 | T120: 0.46
A121: 118 | B121: Daman | C121: Daman and Diu | D121: 18.9 | E121: 26.4 | F121: 74.3 | G121: 0.74 | H121: 0.07 | I121: 0.16 | J121: 0.12 | K121: 0.01 | L121: 0.43 | M121: 321 | N121: 0.37 | O121: 243 | P121: 0.42 | Q121: 294 | R121: 0.45 | S121: 0.48 | T121: 0.51
A122: 119 | B122: North West | C122: Delhi | D122: 38.6 | E122: 17.8 | F122: 73.4 | G122: 2.67 | H122: 0.15 | I122: 0.11 | J122: 0.12 | K122: 0.04 | L122: 0.46 | M122: 396 | N122: 0.41 | O122: 376 | P122: 0.44 | Q122: 341 | R122: 0.45 | S122: 0.46 | T122: 0.48
A123: 120 | B123: North | C123: Delhi | D123: 28.5 | E123: 13.5 | F123: 62.4 | G123: 1.29 | H123: 0.11 | I123: 0.08 | J123: 0.10 | K123: 0.02 | L123: 0.35 | M123: 136 | N123: 0.31 | O123: 113 | P123: 0.34 | Q123: 117 | R123: 0.35 | S123: 0.36 | T123: 0.36
A124: 121 | B124: North East | C124: Delhi | D124: 27.9 | E124: 12.7 | F124: 46.6 | G124: 0.92 | H124: 0.11 | I124: 0.08 | J124: 0.08 | K124: 0.01 | L124: 0.29 | M124: 61 | N124: 0.27 | O124: 52 | P124: 0.30 | Q124: 61 | R124: 0.31 | S124: 0.33 | T124: 0.34
A125: 122 | B125: East | C125: Delhi | D125: 22.5 | E125: 23.7 | F125: 48.7 | G125: 2.40 | H125: 0.09 | I125: 0.14 | J125: 0.08 | K125: 0.03 | L125: 0.36 | M125: 162 | N125: 0.34 | O125: 181 | P125: 0.37 | Q125: 186 | R125: 0.39 | S125: 0.42 | T125: 0.45
A126: 123 | B126: New Delhi | C126: Delhi | D126: 28.5 | E126: 20.3 | F126: 67.5 | G126: 0.92 | H126: 0.11 | I126: 0.12 | J126: 0.11 | K126: 0.01 | L126: 0.40 | M126: 251 | N126: 0.36 | O126: 218 | P126: 0.39 | Q126: 226 | R126: 0.40 | S126: 0.41 | T126: 0.41
A127: 124 | B127: Central | C127: Delhi | D127: 36.6 | E127: 22.9 | F127: 77.2 | G127: 0.37 | H127: 0.14 | I127: 0.14 | J127: 0.13 | K127: 0.00 | L127: 0.48 | M127: 434 | N127: 0.41 | O127: 371 | P127: 0.46 | Q127: 397 | R127: 0.48 | S127: 0.48 | T127: 0.48
A128: 125 | B128: West | C128: Delhi | D128: 37.4 | E128: 17.7 | F128: 64.8 | G128: 1.41 | H128: 0.14 | I128: 0.11 | J128: 0.11 | K128: 0.02 | L128: 0.42 | M128: 286 | N128: 0.38 | O128: 272 | P128: 0.41 | Q128: 268 | R128: 0.43 | S128: 0.44 | T128: 0.46
A129: 126 | B129: South West | C129: Delhi | D129: 32.7 | E129: 12.6 | F129: 64.8 | G129: 2.25 | H129: 0.13 | I129: 0.08 | J129: 0.11 | K129: 0.03 | L129: 0.38 | M129: 197 | N129: 0.34 | O129: 174 | P129: 0.36 | Q129: 164 | R129: 0.38 | S129: 0.39 | T129: 0.41
A130: 127 | B130: South | C130: Delhi | D130: 31.3 | E130: 21.2 | F130: 67.9 | G130: 2.44 | H130: 0.12 | I130: 0.13 | J130: 0.11 | K130: 0.03 | L130: 0.43 | M130: 317 | N130: 0.39 | O130: 319 | P130: 0.41 | Q130: 280 | R130: 0.42 | S130: 0.43 | T130: 0.43
A131: 128 | B131: Dadra & Nagar Haveli | C131: Dadra & Nagar Haveli | D131: 41.71 | E131: 27.99 | F131: 84.63 | G131: 2.51 | H131: 0.16 | I131: 0.17 | J131: 0.14 | K131: 0.03 | L131: 0.59 | M131: 605 | N131: 0.50 | O131: 598 | P131: 0.54 | Q131: 579 | R131: 0.55 | S131: 0.56 | T131: 0.56
A132: 129 | B132: North Goa | C132: Goa | D132: 21.4 | E132: 17.5 | F132: 48.5 | G132: 3.87 | H132: 0.08 | I132: 0.11 | J132: 0.08 | K132: 0.05 | L132: 0.33 | M132: 110 | N132: 0.32 | O132: 135 | P132: 0.32 | Q132: 94 | R132: 0.32 | S132: 0.33 | T132: 0.34
A133: 130 | B133: South Goa | C133: Goa | D133: 18.3 | E133: 27.7 | F133: 48.1 | G133: 3.47 | H133: 0.07 | I133: 0.17 | J133: 0.08 | K133: 0.05 | L133: 0.39 | M133: 228 | N133: 0.36 | O133: 238 | P133: 0.40 | Q133: 249 | R133: 0.43 | S133: 0.48 | T133: 0.53
A134: 131 | B134: Kachchh | C134: Gujarat | D134: 40.8 | E134: 31.4 | F134: 81.4 | G134: 1.26 | H134: 0.16 | I134: 0.19 | J134: 0.14 | K134: 0.02 | L134: 0.58 | M134: 603 | N134: 0.50 | O134: 594 | P134: 0.55 | Q134: 596 | R134: 0.57 | S134: 0.59 | T134: 0.61
A135: 132 | B135: Banaskantha | C135: Gujarat | D135: 40.7 | E135: 21.6 | F135: 57.2 | G135: 1.61 | H135: 0.16 | I135: 0.13 | J135: 0.10 | K135: 0.02 | L135: 0.44 | M135: 333 | N135: 0.40 | O135: 350 | P135: 0.44 | Q135: 354 | R135: 0.46 | S135: 0.48 | T135: 0.50
A136: 133 | B136: Patan | C136: Gujarat | D136: 37.6 | E136: 24.5 | F136: 67.2 | G136: 0.72 | H136: 0.14 | I136: 0.15 | J136: 0.11 | K136: 0.01 | L136: 0.46 | M136: 391 | N136: 0.41 | O136: 375 | P136: 0.46 | Q136: 395 | R136: 0.48 | S136: 0.49 | T136: 0.50
A137: 134 | B137: Mahesana | C137: Gujarat | D137: 40.5 | E137: 25.3 | F137: 77.8 | G137: 1.24 | H137: 0.16 | I137: 0.15 | J137: 0.13 | K137: 0.02 | L137: 0.52 | M137: 532 | N137: 0.46 | O137: 495 | P137: 0.50 | Q137: 485 | R137: 0.51 | S137: 0.52 | T137: 0.53
A138: 135 | B138: Sabarkantha | C138: Gujarat | D138: 50.6 | E138: 23.5 | F138: 72.5 | G138: 1.68 | H138: 0.20 | I138: 0.14 | J138: 0.12 | K138: 0.02 | L138: 0.55 | M138: 574 | N138: 0.48 | O138: 560 | P138: 0.53 | Q138: 563 | R138: 0.55 | S138: 0.58 | T138: 0.62
A139: 136 | B139: Gandhinagar | C139: Gujarat | D139: 36.5 | E139: 29 | F139: 73.7 | G139: 2.43 | H139: 0.14 | I139: 0.17 | J139: 0.12 | K139: 0.03 | L139: 0.52 | M139: 526 | N139: 0.47 | O139: 539 | P139: 0.50 | Q139: 507 | R139: 0.52 | S139: 0.54 | T139: 0.56
A140: 137 | B140: Ahmadabad | C140: Gujarat | D140: 29.4 | E140: 27.1 | F140: 76 | G140: 0.32 | H140: 0.11 | I140: 0.16 | J140: 0.13 | K140: 0.00 | L140: 0.47 | M140: 412 | N140: 0.41 | O140: 356 | P140: 0.46 | Q140: 399 | R140: 0.48 | S140: 0.50 | T140: 0.52
A141: 138 | B141: Surendranagar | C141: Gujarat | D141: 45.5 | E141: 27.7 | F141: 76.8 | G141: 1.93 | H141: 0.18 | I141: 0.17 | J141: 0.13 | K141: 0.03 | L141: 0.56 | M141: 592 | N141: 0.50 | O141: 589 | P141: 0.54 | Q141: 582 | R141: 0.56 | S141: 0.57 | T141: 0.58
A142: 139 | B142: Rajkot | C142: Gujarat | D142: 30.9 | E142: 23.4 | F142: 57.6 | G142: 3.31 | H142: 0.12 | I142: 0.14 | J142: 0.10 | K142: 0.04 | L142: 0.42 | M142: 294 | N142: 0.40 | O142: 339 | P142: 0.42 | Q142: 283 | R142: 0.43 | S142: 0.44 | T142: 0.45
A143: 140 | B143: Jamnagar | C143: Gujarat | D143: 27.9 | E143: 31.3 | F143: 75.7 | G143: 2.24 | H143: 0.11 | I143: 0.19 | J143: 0.13 | K143: 0.03 | L143: 0.51 | M143: 512 | N143: 0.45 | O143: 489 | P143: 0.49 | Q143: 477 | R143: 0.52 | S143: 0.55 | T143: 0.60
A144: 141 | B144: Porbandar | C144: Gujarat | D144: 22.6 | E144: 25.4 | F144: 70.8 | G144: 3.23 | H144: 0.09 | I144: 0.15 | J144: 0.12 | K144: 0.04 | L144: 0.44 | M144: 351 | N144: 0.40 | O144: 343 | P144: 0.42 | Q144: 310 | R144: 0.44 | S144: 0.46 | T144: 0.49
A145: 142 | B145: Junagadh | C145: Gujarat | D145: 27.9 | E145: 30.4 | F145: 77.1 | G145: 2.28 | H145: 0.11 | I145: 0.18 | J145: 0.13 | K145: 0.03 | L145: 0.51 | M145: 510 | N145: 0.45 | O145: 485 | P145: 0.49 | Q145: 461 | R145: 0.51 | S145: 0.54 | T145: 0.58
A146: 143 | B146: Amreli | C146: Gujarat | D146: 37.8 | E146: 24.6 | F146: 74.5 | G146: 5.04 | H146: 0.15 | I146: 0.15 | J146: 0.12 | K146: 0.07 | L146: 0.52 | M146: 536 | N146: 0.49 | O146: 571 | P146: 0.49 | Q146: 468 | R146: 0.50 | S146: 0.50 | T146: 0.50
A147: 144 | B147: Bhavnagar | C147: Gujarat | D147: 48.4 | E147: 26 | F147: 69.2 | G147: 0.48 | H147: 0.19 | I147: 0.16 | J147: 0.12 | K147: 0.01 | L147: 0.53 | M147: 551 | N147: 0.47 | O147: 522 | P147: 0.53 | Q147: 559 | R147: 0.55 | S147: 0.57 | T147: 0.60
A148: 145 | B148: Anand | C148: Gujarat | D148: 48.2 | E148: 21.7 | F148: 59.7 | G148: 5.08 | H148: 0.19 | I148: 0.13 | J148: 0.10 | K148: 0.07 | L148: 0.51 | M148: 515 | N148: 0.48 | O148: 570 | P148: 0.50 | Q148: 505 | R148: 0.52 | S148: 0.55 | T148: 0.59
A149: 146 | B149: Kheda | C149: Gujarat | D149: 45.5 | E149: 27.2 | F149: 53.7 | G149: 0.73 | H149: 0.18 | I149: 0.16 | J149: 0.09 | K149: 0.01 | L149: 0.48 | M149: 444 | N149: 0.44 | O149: 458 | P149: 0.50 | Q149: 501 | R149: 0.53 | S149: 0.56 | T149: 0.58
A150: 147 | B150: Panchmahal | C150: Gujarat | D150: 40.4 | E150: 36.3 | F150: 50.2 | G150: 0.25 | H150: 0.16 | I150: 0.22 | J150: 0.08 | K150: 0.00 | L150: 0.53 | M150: 545 | N150: 0.46 | O150: 515 | P150: 0.55 | Q150: 595 | R150: 0.59 | S150: 0.64 | T150: 0.69
A151: 148 | B151: Dohad | C151: Gujarat | D151: 44.4 | E151: 24.9 | F151: 58.9 | G151: 0.31 | H151: 0.17 | I151: 0.15 | J151: 0.10 | K151: 0.00 | L151: 0.47 | M151: 410 | N151: 0.42 | O151: 408 | P151: 0.48 | Q151: 449 | R151: 0.51 | S151: 0.53 | T151: 0.55
A152: 149 | B152: Vadodara | C152: Gujarat | D152: 43.8 | E152: 16.3 | F152: 54.3 | G152: 0.53 | H152: 0.17 | I152: 0.10 | J152: 0.09 | K152: 0.01 | L152: 0.41 | M152: 270 | N152: 0.37 | O152: 240 | P152: 0.42 | Q152: 297 | R152: 0.45 | S152: 0.49 | T152: 0.53
A153: 150 | B153: Narmada | C153: Gujarat | D153: 47.4 | E153: 35.8 | F153: 53.6 | G153: 1.97 | H153: 0.18 | I153: 0.22 | J153: 0.09 | K153: 0.03 | L153: 0.57 | M153: 599 | N153: 0.51 | O153: 608 | P153: 0.58 | Q153: 616 | R153: 0.62 | S153: 0.66 | T153: 0.69
A154: 151 | B154: Bharuch | C154: Gujarat | D154: 41.5 | E154: 29.4 | F154: 56.8 | G154: 0.98 | H154: 0.16 | I154: 0.18 | J154: 0.09 | K154: 0.01 | L154: 0.49 | M154: 453 | N154: 0.45 | O154: 474 | P154: 0.50 | Q154: 503 | R154: 0.53 | S154: 0.56 | T154: 0.58
A155: 152 | B155: The Dangs | C155: Gujarat | D155: 48.1 | E155: 43 | F155: 74.1 | G155: 0.00 | H155: 0.19 | I155: 0.26 | J155: 0.12 | K155: 0.00 | L155: 0.68 | M155: 637 | N155: 0.57 | O155: 635 | P155: 0.67 | Q155: 639 | R155: 0.71 | S155: 0.76 | T155: 0.82
A156: 153 | B156: Navsari | C156: Gujarat | D156: 38.9 | E156: 26.8 | F156: 51.9 | G156: 2.25 | H156: 0.15 | I156: 0.16 | J156: 0.09 | K156: 0.03 | L156: 0.46 | M156: 381 | N156: 0.43 | O156: 426 | P156: 0.47 | Q156: 409 | R156: 0.49 | S156: 0.51 | T156: 0.53
A157: 154 | B157: Valsad | C157: Gujarat | D157: 43.3 | E157: 30.3 | F157: 50.4 | G157: 0.00 | H157: 0.17 | I157: 0.18 | J157: 0.08 | K157: 0.00 | L157: 0.48 | M157: 440 | N157: 0.43 | O157: 443 | P157: 0.51 | Q157: 525 | R157: 0.54 | S157: 0.57 | T157: 0.60
A158: 155 | B158: Surat | C158: Gujarat | D158: 30 | E158: 26.2 | F158: 42.3 | G158: 3.88 | H158: 0.12 | I158: 0.16 | J158: 0.07 | K158: 0.05 | L158: 0.41 | M158: 271 | N158: 0.40 | O158: 325 | P158: 0.42 | Q158: 293 | R158: 0.44 | S158: 0.47 | T158: 0.50
A159: 156 | B159: Tapi | C159: Gujarat | D159: 35.9 | E159: 35.8 | F159: 49.5 | G159: 2.92 | H159: 0.14 | I159: 0.22 | J159: 0.08 | K159: 0.04 | L159: 0.52 | M159: 529 | N159: 0.48 | O159: 551 | P159: 0.53 | Q159: 569 | R159: 0.57 | S159: 0.63 | T159: 0.68
A160: 157 | B160: Chamba | C160: Himachal Pradesh | D160: 29.9 | E160: 15 | F160: 66.3 | G160: 2.42 | H160: 0.12 | I160: 0.09 | J160: 0.11 | K160: 0.03 | L160: 0.38 | M160: 219 | N160: 0.35 | O160: 197 | P160: 0.36 | Q160: 172 | R160: 0.37 | S160: 0.38 | T160: 0.38
A161: 158 | B161: Kangra | C161: Himachal Pradesh | D161: 25.6 | E161: 11.3 | F161: 47.3 | G161: 0.99 | H161: 0.10 | I161: 0.07 | J161: 0.08 | K161: 0.01 | L161: 0.28 | M161: 43 | N161: 0.26 | O161: 40 | P161: 0.28 | Q161: 45 | R161: 0.29 | S161: 0.30 | T161: 0.31
A162: 159 | B162: Lahul and Spiti | C162: Himachal Pradesh | D162: 23 | E162: 20.8 | F162: 94.7 | G162: 5.03 | H162: 0.09 | I162: 0.13 | J162: 0.16 | K162: 0.07 | L162: 0.72 | M162: 639 | N162: 0.44 | O162: 460 | P162: 0.45 | Q162: 379 | R162: 0.46 | S162: 0.48 | T162: 0.50
A163: 160 | B163: Kullu | C163: Himachal Pradesh | D163: 19 | E163: 11.3 | F163: 54.9 | G163: 2.47 | H163: 0.07 | I163: 0.07 | J163: 0.09 | K163: 0.03 | L163: 0.28 | M163: 51 | N163: 0.27 | O163: 44 | P163: 0.27 | Q163: 37 | R163: 0.28 | S163: 0.28 | T163: 0.29
A164: 161 | B164: Mandi | C164: Himachal Pradesh | D164: 26.3 | E164: 13.1 | F164: 37.8 | G164: 2.43 | H164: 0.10 | I164: 0.08 | J164: 0.06 | K164: 0.03 | L164: 0.28 | M164: 49 | N164: 0.28 | O164: 56 | P164: 0.29 | Q164: 52 | R164: 0.30 | S164: 0.31 | T164: 0.32
A165: 162 | B165: Hamirpur | C165: Himachal Pradesh | D165: 29.3 | E165: 12.6 | F165: 41.2 | G165: 3.72 | H165: 0.11 | I165: 0.08 | J165: 0.07 | K165: 0.05 | L165: 0.32 | M165: 86 | N165: 0.31 | O165: 100 | P165: 0.31 | Q165: 79 | R165: 0.32 | S165: 0.33 | T165: 0.36
A166: 163 | B166: Una | C166: Himachal Pradesh | D166: 22.6 | E166: 10.7 | F166: 56.6 | G166: 1.62 | H166: 0.09 | I166: 0.06 | J166: 0.09 | K166: 0.02 | L166: 0.29 | M166: 60 | N166: 0.27 | O166: 47 | P166: 0.28 | Q166: 48 | R166: 0.29 | S166: 0.30 | T166: 0.31
A167: 164 | B167: Bilaspur | C167: Himachal Pradesh | D167: 27.2 | E167: 13.1 | F167: 28.3 | G167: 2.60 | H167: 0.10 | I167: 0.08 | J167: 0.05 | K167: 0.04 | L167: 0.27 | M167: 40 | N167: 0.27 | O167: 43 | P167: 0.28 | Q167: 44 | R167: 0.29 | S167: 0.31 | T167: 0.33
A168: 165 | B168: Solan | C168: Himachal Pradesh | D168: 27.6 | E168: 17.5 | F168: 71.8 | G168: 1.66 | H168: 0.11 | I168: 0.11 | J168: 0.12 | K168: 0.02 | L168: 0.40 | M168: 257 | N168: 0.35 | O168: 211 | P168: 0.38 | Q168: 202 | R168: 0.39 | S168: 0.39 | T168: 0.40
A169: 166 | B169: Sirmaur | C169: Himachal Pradesh | D169: 23.5 | E169: 19.5 | F169: 65.1 | G169: 2.36 | H169: 0.09 | I169: 0.12 | J169: 0.11 | K169: 0.03 | L169: 0.38 | M169: 207 | N169: 0.35 | O169: 196 | P169: 0.37 | Q169: 174 | R169: 0.37 | S169: 0.38 | T169: 0.39
A170: 167 | B170: Shimla | C170: Himachal Pradesh | D170: 30.3 | E170: 15 | F170: 70 | G170: 0.92 | H170: 0.12 | I170: 0.09 | J170: 0.12 | K170: 0.01 | L170: 0.38 | M170: 223 | N170: 0.34 | O170: 165 | P170: 0.37 | Q170: 187 | R170: 0.38 | S170: 0.39 | T170: 0.40
A171: 168 | B171: Kinnaur | C171: Himachal Pradesh | D171: 18.4 | E171: 12.4 | F171: 83.1 | G171: 0.63 | H171: 0.07 | I171: 0.07 | J171: 0.14 | K171: 0.01 | L171: 0.40 | M171: 250 | N171: 0.29 | O171: 81 | P171: 0.34 | Q171: 120 | R171: 0.37 | S171: 0.40 | T171: 0.44
A172: 169 | B172: Panchkula | C172: Haryana | D172: 21.5 | E172: 31.8 | F172: 66.4 | G172: 3.79 | H172: 0.08 | I172: 0.19 | J172: 0.11 | K172: 0.05 | L172: 0.48 | M172: 427 | N172: 0.44 | O172: 447 | P172: 0.47 | Q172: 421 | R172: 0.51 | S172: 0.55 | T172: 0.60
A173: 170 | B173: Ambala | C173: Haryana | D173: 19.8 | E173: 37.9 | F173: 75.1 | G173: 8.56 | H173: 0.08 | I173: 0.23 | J173: 0.13 | K173: 0.12 | L173: 0.60 | M173: 612 | N173: 0.55 | O173: 628 | P173: 0.58 | Q173: 613 | R173: 0.61 | S173: 0.66 | T173: 0.72
A174: 171 | B174: Yamunanagar | C174: Haryana | D174: 30 | E174: 26.8 | F174: 58 | G174: 2.55 | H174: 0.12 | I174: 0.16 | J174: 0.10 | K174: 0.03 | L174: 0.43 | M174: 328 | N174: 0.41 | O174: 359 | P174: 0.44 | Q174: 342 | R174: 0.46 | S174: 0.48 | T174: 0.51
A175: 172 | B175: Kurukshetra | C175: Haryana | D175: 31.9 | E175: 24.1 | F175: 63.4 | G175: 3.03 | H175: 0.12 | I175: 0.15 | J175: 0.11 | K175: 0.04 | L175: 0.44 | M175: 348 | N175: 0.42 | O175: 377 | P175: 0.43 | Q175: 328 | R175: 0.44 | S175: 0.46 | T175: 0.47
A176: 173 | B176: Kaithal | C176: Haryana | D176: 33.6 | E176: 23.8 | F176: 68 | G176: 2.34 | H176: 0.13 | I176: 0.14 | J176: 0.11 | K176: 0.03 | L176: 0.45 | M176: 377 | N176: 0.42 | O176: 393 | P176: 0.44 | Q176: 356 | R176: 0.45 | S176: 0.46 | T176: 0.47
A177: 174 | B177: Karnal | C177: Haryana | D177: 41 | E177: 19.8 | F177: 75.5 | G177: 6.21 | H177: 0.16 | I177: 0.12 | J177: 0.13 | K177: 0.08 | L177: 0.52 | M177: 540 | N177: 0.49 | O177: 574 | P177: 0.49 | Q177: 454 | R177: 0.49 | S177: 0.49 | T177: 0.51
A178: 175 | B178: Panipat | C178: Haryana | D178: 44.6 | E178: 25.1 | F178: 65.5 | G178: 1.57 | H178: 0.17 | I178: 0.15 | J178: 0.11 | K178: 0.02 | L178: 0.50 | M178: 481 | N178: 0.45 | O178: 491 | P178: 0.50 | Q178: 486 | R178: 0.52 | S178: 0.54 | T178: 0.56
A179: 176 | B179: Sonipat | C179: Haryana | D179: 40.2 | E179: 21.6 | F179: 58.6 | G179: 1.91 | H179: 0.15 | I179: 0.13 | J179: 0.10 | K179: 0.03 | L179: 0.44 | M179: 346 | N179: 0.41 | O179: 360 | P179: 0.44 | Q179: 355 | R179: 0.46 | S179: 0.48 | T179: 0.50
A180: 177 | B180: Jind | C180: Haryana | D180: 26 | E180: 26.7 | F180: 76.6 | G180: 1.99 | H180: 0.10 | I180: 0.16 | J180: 0.13 | K180: 0.03 | L180: 0.48 | M180: 415 | N180: 0.42 | O180: 382 | P180: 0.45 | Q180: 375 | R180: 0.47 | S180: 0.49 | T180: 0.51
A181: 178 | B181: Fatehabad | C181: Haryana | D181: 28.5 | E181: 20.7 | F181: 70.5 | G181: 5.43 | H181: 0.11 | I181: 0.12 | J181: 0.12 | K181: 0.07 | L181: 0.45 | M181: 376 | N181: 0.43 | O181: 415 | P181: 0.42 | Q181: 305 | R181: 0.42 | S181: 0.42 | T181: 0.42
A182: 179 | B182: Sirsa | C182: Haryana | D182: 34.2 | E182: 22.5 | F182: 72.4 | G182: 1.98 | H182: 0.13 | I182: 0.14 | J182: 0.12 | K182: 0.03 | L182: 0.46 | M182: 392 | N182: 0.42 | O182: 379 | P182: 0.44 | Q182: 353 | R182: 0.45 | S182: 0.46 | T182: 0.46
A183: 180 | B183: Hisar | C183: Haryana | D183: 25.6 | E183: 23.5 | F183: 66.4 | G183: 2.73 | H183: 0.10 | I183: 0.14 | J183: 0.11 | K183: 0.04 | L183: 0.42 | M183: 295 | N183: 0.39 | O183: 304 | P183: 0.41 | Q183: 265 | R183: 0.42 | S183: 0.43 | T183: 0.45
A184: 181 | B184: Bhiwani | C184: Haryana | D184: 35.1 | E184: 15.7 | F184: 74.8 | G184: 2.03 | H184: 0.14 | I184: 0.09 | J184: 0.12 | K184: 0.03 | L184: 0.44 | M184: 337 | N184: 0.38 | O184: 290 | P184: 0.41 | Q184: 266 | R184: 0.42 | S184: 0.43 | T184: 0.44
A185: 182 | B185: Rohtak | C185: Haryana | D185: 36.6 | E185: 13.6 | F185: 76.3 | G185: 1.19 | H185: 0.14 | I185: 0.08 | J185: 0.13 | K185: 0.02 | L185: 0.43 | M185: 329 | N185: 0.37 | O185: 245 | P185: 0.41 | Q185: 263 | R185: 0.43 | S185: 0.44 | T185: 0.46
A186: 183 | B186: Jhajjar | C186: Haryana | D186: 22.3 | E186: 15.5 | F186: 70.9 | G186: 2.67 | H186: 0.09 | I186: 0.09 | J186: 0.12 | K186: 0.04 | L186: 0.38 | M186: 198 | N186: 0.33 | O186: 158 | P186: 0.35 | Q186: 132 | R186: 0.36 | S186: 0.36 | T186: 0.38
A187: 184 | B187: Mahendragarh | C187: Haryana | D187: 23.5 | E187: 19.2 | F187: 73.7 | G187: 6.54 | H187: 0.09 | I187: 0.12 | J187: 0.12 | K187: 0.09 | L187: 0.45 | M187: 372 | N187: 0.42 | O187: 387 | P187: 0.41 | Q187: 275 | R187: 0.41 | S187: 0.41 | T187: 0.41
A188: 185 | B188: Rewari | C188: Haryana | D188: 27.8 | E188: 18.3 | F188: 77.8 | G188: 1.49 | H188: 0.11 | I188: 0.11 | J188: 0.13 | K188: 0.02 | L188: 0.43 | M188: 324 | N188: 0.37 | O188: 248 | P188: 0.40 | Q188: 241 | R188: 0.41 | S188: 0.42 | T188: 0.42
A189: 186 | B189: Gurgaon | C189: Haryana | D189: 41.2 | E189: 17.9 | F189: 66.2 | G189: 1.05 | H189: 0.16 | I189: 0.11 | J189: 0.11 | K189: 0.01 | L189: 0.44 | M189: 339 | N189: 0.39 | O189: 314 | P189: 0.43 | Q189: 332 | R189: 0.45 | S189: 0.48 | T189: 0.50
A190: 187 | B190: Mewat | C190: Haryana | D190: 52.3 | E190: 17.2 | F190: 83.7 | G190: 4.23 | H190: 0.20 | I190: 0.10 | J190: 0.14 | K190: 0.06 | L190: 0.59 | M190: 608 | N190: 0.50 | O190: 595 | P190: 0.53 | Q190: 570 | R190: 0.56 | S190: 0.59 | T190: 0.64
A191: 188 | B191: Faridabad | C191: Haryana | D191: 29.7 | E191: 19.7 | F191: 75 | G191: 1.34 | H191: 0.11 | I191: 0.12 | J191: 0.13 | K191: 0.02 | L191: 0.43 | M191: 323 | N191: 0.38 | O191: 268 | P191: 0.41 | Q191: 264 | R191: 0.42 | S191: 0.42 | T191: 0.42
A192: 189 | B192: Palwal | C192: Haryana | D192: 34 | E192: 21.4 | F192: 75.2 | G192: 0.00 | H192: 0.13 | I192: 0.13 | J192: 0.13 | K192: 0.00 | L192: 0.45 | M192: 367 | N192: 0.39 | O192: 295 | P192: 0.44 | Q192: 336 | R192: 0.45 | S192: 0.45 | T192: 0.45
A193: 190 | B193: Garhwa | C193: Jharkhand | D193: 45.6 | E193: 31.3 | F193: 65.4 | G193: 0.50 | H193: 0.18 | I193: 0.19 | J193: 0.11 | K193: 0.01 | L193: 0.54 | M193: 563 | N193: 0.48 | O193: 559 | P193: 0.55 | Q193: 593 | R193: 0.58 | S193: 0.60 | T193: 0.62
A194: 191 | B194: Chatra | C194: Jharkhand | D194: 49.6 | E194: 30.6 | F194: 60.6 | G194: 1.26 | H194: 0.19 | I194: 0.18 | J194: 0.10 | K194: 0.02 | L194: 0.55 | M194: 581 | N194: 0.49 | O194: 586 | P194: 0.56 | Q194: 600 | R194: 0.59 | S194: 0.62 | T194: 0.64
A195: 192 | B195: Kodarma | C195: Jharkhand | D195: 42.4 | E195: 20.3 | F195: 72.4 | G195: 1.17 | H195: 0.16 | I195: 0.12 | J195: 0.12 | K195: 0.02 | L195: 0.48 | M195: 430 | N195: 0.42 | O195: 401 | P195: 0.46 | Q195: 405 | R195: 0.48 | S195: 0.50 | T195: 0.52
A196: 193 | B196: Giridih | C196: Jharkhand | D196: 45.8 | E196: 23.6 | F196: 74.4 | G196: 1.86 | H196: 0.18 | I196: 0.14 | J196: 0.12 | K196: 0.03 | L196: 0.53 | M196: 548 | N196: 0.47 | O196: 528 | P196: 0.51 | Q196: 516 | R196: 0.53 | S196: 0.54 | T196: 0.56
A197: 194 | B197: Deoghar | C197: Jharkhand | D197: 44.8 | E197: 23.8 | F197: 64.6 | G197: 1.24 | H197: 0.17 | I197: 0.14 | J197: 0.11 | K197: 0.02 | L197: 0.49 | M197: 454 | N197: 0.44 | O197: 463 | P197: 0.49 | Q197: 456 | R197: 0.51 | S197: 0.53 | T197: 0.55
A198: 195 | B198: Godda | C198: Jharkhand | D198: 54 | E198: 24.8 | F198: 80.7 | G198: 0.48 | H198: 0.21 | I198: 0.15 | J198: 0.13 | K198: 0.01 | L198: 0.60 | M198: 610 | N198: 0.50 | O198: 592 | P198: 0.57 | Q198: 606 | R198: 0.59 | S198: 0.62 | T198: 0.66
A199: 196 | B199: Sahibganj | C199: Jharkhand | D199: 50.2 | E199: 24.6 | F199: 70.4 | G199: 2.11 | H199: 0.19 | I199: 0.15 | J199: 0.12 | K199: 0.03 | L199: 0.55 | M199: 571 | N199: 0.49 | O199: 576 | P199: 0.53 | Q199: 568 | R199: 0.56 | S199: 0.58 | T199: 0.61
A200: 197 | B200: Pakur | C200: Jharkhand | D200: 51.8 | E200: 24.2 | F200: 74.3 | G200: 2.10 | H200: 0.20 | I200: 0.15 | J200: 0.12 | K200: 0.03 | L200: 0.57 | M200: 596 | N200: 0.50 | O200: 590 | P200: 0.54 | Q200: 587 | R200: 0.57 | S200: 0.60 | T200: 0.63
A201: 198 | B201: Dhanbad | C201: Jharkhand | D201: 38.5 | E201: 28.1 | F201: 69.9 | G201: 2.51 | H201: 0.15 | I201: 0.17 | J201: 0.12 | K201: 0.03 | L201: 0.51 | M201: 502 | N201: 0.47 | O201: 529 | P201: 0.50 | Q201: 496 | R201: 0.52 | S201: 0.53 | T201: 0.55
... 442 more rows

Sheet 5. Monotonicity Cases
A1: Examples explaining Monotonicity Axiom
E3: Weighted Standardized values | I3: Agggregation Scores
A4: Case | C4: District | D4: State | E4: wyST | F4: wyWA | G4: wyAN | H4: wyOW | I4: Geometric | J4: Linear | K4: MANUSH (α = 2)
A5: 1 | B5: a | C5: Godda | D5: Jharkhand | E5: 0.21 | F5: 0.15 | G5: 0.13 | H5: 0.01 | I5: 0.60 | J5: 0.50 | K5: 0.57
B6: b | C6: Nalanda | D6: Bihar | E6: 0.21 | F6: 0.15 | G6: 0.10 | H6: 0.01 | I6: 0.54 | J6: 0.47 | K6: 0.53
A7: 2 | B7: a | C7: Nalanda | D7: Bihar | E7: 0.21 | F7: 0.15 | G7: 0.10 | H7: 0.01 | I7: 0.54 | J7: 0.47 | K7: 0.53
B8: b | C8: Budaun | D8: Uttar Pradesh | E8: 0.21 | F8: 0.12 | G8: 0.10 | H8: 0.01 | I8: 0.52 | J8: 0.44 | K8: 0.51
A9: 3 | B9: a | C9: West Khasi Hills | D9: Meghalaya | E9: 0.20 | F9: 0.10 | G9: 0.06 | H9: 0.05 | I9: 0.46 | J9: 0.41 | K9: 0.46
B10: b | C10: Jaintia Hills | D10: Meghalaya | E10: 0.20 | F10: 0.10 | G10: 0.06 | H10: 0.03 | I10: 0.43 | J10: 0.38 | K10: 0.44
A11: 4 | B11: a | C11: Ribhoi | D11: Meghalaya | E11: 0.20 | F11: 0.06 | G11: 0.07 | H11: 0.07 | I11: 0.45 | J11: 0.40 | K11: 0.45
B12: b | C12: Etah | D12: Uttar Pradesh | E12: 0.20 | F12: 0.06 | G12: 0.07 | H12: 0.02 | I12: 0.41 | J12: 0.35 | K12: 0.42
A13: 5 | B13: a | C13: Gaya | D13: Bihar | E13: 0.20 | F13: 0.15 | G13: 0.10 | H13: 0.01 | I13: 0.53 | J13: 0.47 | K13: 0.54
B14: b | C14: Jehanabad | D14: Bihar | E14: 0.20 | F14: 0.12 | G14: 0.10 | H14: 0.01 | I14: 0.50 | J14: 0.43 | K14: 0.50
A15: 6 | B15: a | C15: Purnia | D15: Bihar | E15: 0.20 | F15: 0.13 | G15: 0.11 | H15: 0.02 | I15: 0.52 | J15: 0.46 | K15: 0.51
B16: b | C16: Sheohar | D16: Bihar | E16: 0.20 | F16: 0.09 | G16: 0.11 | H16: 0.02 | I16: 0.49 | J16: 0.42 | K16: 0.48
A17: 7 | B17: a | C17: Sant Kabir Nagar | D17: Uttar Pradesh | E17: 0.19 | F17: 0.07 | G17: 0.12 | H17: 0.04 | I17: 0.49 | J17: 0.42 | K17: 0.47
B18: b | C18: East Khasi Hills | D18: Meghalaya | E18: 0.19 | F18: 0.07 | G18: 0.08 | H18: 0.04 | I18: 0.42 | J18: 0.37 | K18: 0.42
A19: 8 | B19: a | C19: Sidhi | D19: Madhya Pradesh | E19: 0.19 | F19: 0.15 | G19: 0.11 | H19: 0.06 | I19: 0.55 | J19: 0.51 | K19: 0.53
B20: b | C20: Hazaribagh | D20: Jharkhand | E20: 0.19 | F20: 0.15 | G20: 0.11 | H20: 0.04 | I20: 0.53 | J20: 0.48 | K20: 0.52
A21: 9 | B21: a | C21: Sahibganj | D21: Jharkhand | E21: 0.19 | F21: 0.15 | G21: 0.12 | H21: 0.03 | I21: 0.55 | J21: 0.49 | K21: 0.53
B22: b | C22: Aurangabad | D22: Bihar | E22: 0.19 | F22: 0.15 | G22: 0.09 | H22: 0.03 | I22: 0.49 | J22: 0.45 | K22: 0.50

Sheet 6. Uniformity Cases
A1: Examples explaining Uniformity Axiom
E3: Weighted Standardized values | I3: Weighted Average | J3: Deviation from Weighted average | K3: Agggregation Scores
A4: Situation | C4: District | D4: State | E4: wyST | F4: wyWA | G4: wyAN | H4: wyOW | I4: µ | J4: σ | K4: Geometric | L4: Linear | M4: MANUSH (α = 2)
A5: 1 | B5: a | C5: Datia | D5: Madhya Pradesh | E5: 0.19 | F5: 0.16 | G5: 0.12 | H5: 0.01 | I5: 0.48 | J5: =((((E5-I5)^2)+((F5-I5)^2)+((G5-I5)^2)+((H5-I5)^2))/3)^0.5 -> 0.43 | K5: 0.55 | L5: 0.48 | M5: 0.54
B6: b | C6: Jaunpur | D6: Uttar Pradesh | E6: 0.19 | F6: 0.16 | G6: 0.10 | H6: 0.03 | I6: 0.48 | J6: 0.42 | K6: 0.52 | L6: 0.48 | M6: 0.52
A7: 2 | B7: a | C7: Baran | D7: Rajastha | E7: 0.15 | F7: 0.17 | G7: 0.13 | H7: 0.02 | I7: 0.47 | J7: 0.42 | K7: 0.53 | L7: 0.47 | M7: 0.52
B8: b | C8: Dhanbad | D8: Jharkhand | E8: 0.15 | F8: 0.17 | G8: 0.12 | H8: 0.03 | I8: 0.47 | J8: 0.41 | K8: 0.51 | L8: 0.47 | M8: 0.50
A9: 3 | B9: a | C9: Raisen | D9: Madhya Pradesh | E9: 0.18 | F9: 0.15 | G9: 0.11 | H9: 0.02 | I9: 0.46 | J9: 0.41 | K9: 0.51 | L9: 0.46 | M9: 0.51
B10: b | C10: Jharsuguda | D10: Odisha | E10: 0.13 | F10: 0.15 | G10: 0.11 | H10: 0.06 | I10: 0.46 | J10: 0.40 | K10: 0.48 | L10: 0.46 | M10: 0.47
A11: 4 | B11: a | C11: Birbhum | D11: West Bengal | E11: 0.16 | F11: 0.18 | G11: 0.10 | H11: 0.02 | I11: 0.45 | J11: 0.40 | K11: 0.49 | L11: 0.45 | M11: 0.50
B12: b | C12: Gondiya | D12: Maharashtra | E12: 0.13 | F12: 0.18 | G12: 0.10 | H12: 0.04 | I12: 0.45 | J12: 0.39 | K12: 0.48 | L12: 0.45 | M12: 0.48
A13: 5 | B13: a | C13: Madhubani | D13: Bihar | E13: 0.20 | F13: 0.12 | G13: 0.11 | H13: 0.02 | I13: 0.44 | J13: 0.39 | K13: 0.51 | L13: 0.44 | M13: 0.50
B14: b | C14: North District | D14: Sikkim | E14: 0.09 | F14: 0.12 | G14: 0.11 | H14: 0.12 | I14: 0.44 | J14: 0.38 | K14: 0.46 | L14: 0.44 | M14: 0.43
A15: 6 | B15: a | C15: Kodarma | D15: Jharkhand | E15: 0.16 | F15: 0.12 | G15: 0.12 | H15: 0.02 | I15: 0.42 | J15: 0.37 | K15: 0.48 | L15: 0.42 | M15: 0.46
B16: b | C16: Mahendragarh | D16: Haryana | E16: 0.09 | F16: 0.12 | G16: 0.12 | H16: 0.09 | I16: 0.42 | J16: 0.36 | K16: 0.45 | L16: 0.42 | M16: 0.41
A17: 7 | B17: a | C17: Goalpara | D17: Assam | E17: 0.16 | F17: 0.13 | G17: 0.06 | H17: 0.03 | I17: 0.39 | J17: 0.35 | K17: 0.42 | L17: 0.39 | M17: 0.44
B18: b | C18: South | D18: Delhi | E18: 0.12 | F18: 0.13 | G18: 0.11 | H18: 0.03 | I18: 0.39 | J18: 0.34 | K18: 0.43 | L18: 0.39 | M18: 0.41

Sheet 7.Shortfall Sensitivity
A1: Cases penalised as result of Shortfall sensitivity
E3: Weighted Standardized values (In descending order) | O3: Agggregation Scores
A4: Situation | C4: District | D4: State | E4: q = wyST | F4: r = wyWA | G4: s = wyOW | H4: t = wyAN | I4: q1-q2 | J4: (q1/r1)*(r1-r2) | K4: r1-r2 | L4: (r1/s1)*(s1-s2) | M4: (s1-s2) | N4: (s1/t1)*(t1-t2) | O4: Geometric | P4: Linear | Q4: MANUSH (α = 2) | R4: MANUSH (α = 3) | S4: MANUSH (α = 5) | T4: MANUSH (α = 10)
A5: 1 | B5: a | C5: Rajnandgaon | D5: Chhattisgarh | E5: 0.19 | F5: 0.10 | G5: 0.08 | H5: 0.05 | I5: =E5-E6 -> 0.05 | J5: =(E5/F5)*(F5-F6) -> 0.06 | K5: =F5-F6 -> 0.03 | L5: =(F5/G5)*(G5-G6) -> 0.03 | M5: =G5-G6 -> 0.02 | N5: =(G5/H5)*(H5-H6) -> 0.02 | O5: 0.45 | P5: 0.42 | Q5: 0.46 | R5: 0.49 | S5: 0.54 | T5: 0.59
B6: b | C6: Saiha | D6: Mizoram | E6: 0.14 | F6: 0.07 | G6: 0.06 | H6: 0.03 | O6: 0.32 | P6: 0.31 | Q6: 0.34 | R6: 0.37 | S6: 0.41 | T6: 0.45
A7: 2 | B7: a | C7: Bongaigaon | D7: Assam | E7: 0.15 | F7: 0.14 | G7: 0.08 | H7: 0.06 | I7: =E7-E8 -> 0.01 | J7: =(E7/F7)*(F7-F8) -> 0.08 | K7: =F7-F8 -> 0.07 | L7: =(F7/G7)*(G7-G8) -> 0.08 | M7: =G7-G8 -> 0.05 | N7: =(G7/H7)*(H7-H8) -> 0.04 | O7: 0.44 | P7: 0.43 | Q7: 0.45 | R7: 0.46 | S7: 0.48 | T7: 0.50
B8: b | C8: Tuensang | D8: Nagaland | E8: 0.14 | F8: 0.07 | G8: 0.04 | H8: 0.03 | O8: 0.30 | P8: 0.28 | Q8: 0.32 | R8: 0.36 | S8: 0.40 | T8: 0.44
A9: Situation | C9: District | D9: State | E9: q = wyST | F9: r = wyWA | G9: s = wyAN | H9: t = wyOW | I9: q1-q2 | J9: (q1/r1)*(r1-r2) | K9: r1-r2 | L9: (r1/s1)*(s1-s2) | M9: (s1-s2) | N9: (s1/t1)*(t1-t2) | O9: Geometric | P9: Linear | Q9: MANUSH (α = 2) | R9: MANUSH (α = 3) | S9: MANUSH (α = 5) | T9: MANUSH (α = 10)
A10: 3 | B10: a | C10: Chatra | D10: Jharkhand | E10: 0.19 | F10: 0.18 | G10: 0.10 | H10: 0.02 | I10: =E10-E11 -> 0.02 | J10: =(E10/F10)*(F10-F11) -> 0.05 | K10: =F10-F11 -> 0.05 | L10: =(F10/G10)*(G10-G11) -> 0.03 | M10: =G10-G11 -> 0.02 | N10: =(G10/H10)*(H10-H11) -> 0.02 | O10: 0.55 | P10: 0.49 | Q10: 0.56 | R10: 0.59 | S10: 0.62 | T10: 0.64
B11: b | C11: Jalna | D11: Maharashtra | E11: 0.17 | F11: 0.14 | G11: 0.08 | H11: 0.01 | O11: 0.44 | P11: 0.40 | Q11: 0.45 | R11: 0.48 | S11: 0.51 | T11: 0.54
A12: 4 | B12: a | C12: Aurangabad | D12: Bihar | E12: 0.19 | F12: 0.15 | G12: 0.09 | H12: 0.03 | I12: =E12-E13 -> 0.02 | J12: =(E12/F12)*(F12-F13) -> 0.04 | K12: =F12-F13 -> 0.03 | L12: =(F12/G12)*(G12-G13) -> 0.04 | M12: =G12-G13 -> 0.03 | N12: =(G12/H12)*(H12-H13) -> 0.04 | O12: 0.49 | P12: 0.45 | Q12: 0.50 | R12: 0.53 | S12: 0.56 | T12: 0.59
B13: b | C13: Mahasamund | D13: Chhattisgarh | E13: 0.17 | F13: 0.12 | G13: 0.06 | H13: 0.02 | O13: 0.40 | P13: 0.37 | Q13: 0.42 | R13: 0.46 | S13: 0.49 | T13: 0.53
A14: 5 | B14: a | C14: Rayagada | D14: Odisha | E14: 0.17 | F14: 0.14 | G14: 0.08 | H14: 0.05 | I14: =E14-E15 -> 0.01 | J14: =(E14/F14)*(F14-F15) -> 0.05 | K14: =F14-F15 -> 0.04 | L14: =(F14/G14)*(G14-G15) -> 0.05 | M14: =G14-G15 -> 0.03 | N14: =(G14/H14)*(H14-H15) -> 0.03 | O14: 0.46 | P14: 0.44 | Q14: 0.47 | R14: 0.49 | S14: 0.51 | T14: 0.54
B15: b | C15: Barpeta | D15: Assam | E15: 0.16 | F15: 0.10 | G15: 0.05 | H15: 0.03 | O15: 0.37 | P15: 0.34 | Q15: 0.39 | R15: 0.42 | S15: 0.46 | T15: 0.51
A16: 6 | B16: a | C16: Osmanabad | D16: Maharashtra | E16: 0.17 | F16: 0.13 | G16: 0.06 | H16: 0.04 | I16: =E16-E17 -> 0.03 | J16: =(E16/F16)*(F16-F17) -> 0.03 | K16: =F16-F17 -> 0.02 | L16: =(F16/G16)*(G16-G17) -> 0.02 | M16: =G16-G17 -> 0.01 | N16: =(G16/H16)*(H16-H17) -> 0.04 | O16: 0.43 | P16: 0.40 | Q16: 0.44 | R16: 0.47 | S16: 0.50 | T16: 0.53
B17: b | C17: Jashpur | D17: Chhattisgarh | E17: 0.14 | F17: 0.11 | G17: 0.05 | H17: 0.02 | O17: 0.34 | P17: 0.32 | Q17: 0.36 | R17: 0.39 | S17: 0.41 | T17: 0.43
A18: 7 | B18: a | C18: Akola | D18: Maharashtra | E18: 0.16 | F18: 0.14 | G18: 0.09 | H18: 0.03 | I18: =E18-E19 -> 0.03 | J18: =(E18/F18)*(F18-F19) -> 0.02 | K18: =F18-F19 -> 0.02 | L18: =(F18/G18)*(G18-G19) -> 0.06 | M18: =G18-G19 -> 0.04 | N18: =(G18/H18)*(H18-H19) -> 0.01 | O18: 0.44 | P18: 0.41 | Q18: 0.45 | R18: 0.47 | S18: 0.49 | T18: 0.51
B19: b | C19: Debagarh | D19: Odisha | E19: 0.13 | F19: 0.12 | G19: 0.05 | H19: 0.02 | O19: 0.34 | P19: 0.32 | Q19: 0.36 | R19: 0.38 | S19: 0.41 | T19: 0.42
A20: 8 | B20: a | C20: Kabirdham | D20: Chhattisgarh | E20: 0.16 | F20: 0.11 | G20: 0.06 | H20: 0.05 | I20: =E20-E21 -> 0.04 | J20: =(E20/F20)*(F20-F21) -> 0.01 | K20: =F20-F21 -> 0.01 | L20: =(F20/G20)*(G20-G21) -> 0.02 | M20: =G20-G21 -> 0.01 | N20: =(G20/H20)*(H20-H21) -> 0.04 | O20: 0.39 | P20: 0.37 | Q20: 0.40 | R20: 0.42 | S20: 0.45 | T20: 0.49
B21: b | C21: Jajapur | D21: Odisha | E21: 0.12 | F21: 0.10 | G21: 0.05 | H21: 0.02 | O21: 0.30 | P21: 0.29 | Q21: 0.32 | R21: 0.34 | S21: 0.36 | T21: 0.38
A22: 9 | B22: a | C22: Hanumangarh | D22: Rajasthan | E22: 0.13 | F22: 0.12 | G22: 0.08 | H22: 0.04 | I22: =E22-E23 -> 0.03 | J22: =(E22/F22)*(F22-F23) -> 0.05 | K22: =F22-F23 -> 0.05 | L22: =(F22/G22)*(G22-G23) -> 0.02 | M22: =G22-G23 -> 0.01 | N22: =(G22/H22)*(H22-H23) -> 0.02 | O22: 0.39 | P22: 0.38 | Q22: 0.40 | R22: 0.41 | S22: 0.43 | T22: 0.44
B23: b | C23: Mandi | D23: Himachal Pradesh | E23: 0.10 | F23: 0.08 | G23: 0.06 | H23: 0.03 | O23: 0.28 | P23: 0.28 | Q23: 0.29 | R23: 0.30 | S23: 0.31 | T23: 0.32
A24: Situation | C24: District | D24: State | E24: q = wyWA | F24: r = wyST | G24: s = wyAN | H24: t = wyOW | I24: q1-q2 | J24: (q1/r1)*(r1-r2) | K24: r1-r2 | L24: (r1/s1)*(s1-s2) | M24: (s1-s2) | N24: (s1/t1)*(t1-t2) | O24: Geometric | P24: Linear | Q24: MANUSH (α = 2) | R24: MANUSH (α = 3) | S24: MANUSH (α = 5) | T24: MANUSH (α = 10)
A25: 10 | B25: a | C25: Narmada | D25: Gujarat | E25: 0.22 | F25: 0.18 | G25: 0.09 | H25: 0.03 | I25: =E25-E26 -> 0.03 | J25: =(E25/F25)*(F25-F26) -> 0.02 | K25: =F25-F26 -> 0.02 | L25: =(F25/G25)*(G25-G26) -> 0.01 | M25: =G25-G26 -> 0.01 | N25: =(G25/H25)*(H25-H26) -> 0.09 | O25: 0.57 | P25: 0.51 | Q25: 0.58 | R25: 0.62 | S25: 0.66 | T25: 0.69
B26: b | C26: Valsad | D26: Gujarat | E26: 0.18 | F26: 0.17 | G26: 0.08 | H26: 0.00 | O26: 0.48 | P26: 0.43 | Q26: 0.51 | R26: 0.54 | S26: 0.57 | T26: 0.60
A27: 11 | B27: a | C27: Dharwad | D27: Karnataka | E27: 0.20 | F27: 0.14 | G27: 0.08 | H27: 0.04 | I27: =E27-E28 -> 0.04 | J27: =(E27/F27)*(F27-F28) -> 0.02 | K27: =F27-F28 -> 0.01 | L27: =(F27/G27)*(G27-G28) -> 0.06 | M27: =G27-G28 -> 0.03 | N27: =(G27/H27)*(H27-H28) -> 0.03 | O27: 0.51 | P27: 0.47 | Q27: 0.52 | R27: 0.56 | S27: 0.60 | T27: 0.64
B28: b | C28: Bilaspur | D28: Chhattisgarh | E28: 0.16 | F28: 0.13 | G28: 0.05 | H28: 0.03 | O28: 0.39 | P28: 0.37 | Q28: 0.42 | R28: 0.46 | S28: 0.49 | T28: 0.52
A29: 12 | B29: a | C29: Washim | D29: Maharashtra | E29: 0.20 | F29: 0.16 | G29: 0.10 | H29: 0.03 | I29: =E29-E30 -> 0.02 | J29: =(E29/F29)*(F29-F30) -> 0.01 | K29: =F29-F30 -> 0.01 | L29: =(F29/G29)*(G29-G30) -> 0.02 | M29: =G29-G30 -> 0.01 | N29: =(G29/H29)*(H29-H30) -> 0.05 | O29: 0.52 | P29: 0.48 | Q29: 0.53 | R29: 0.56 | S29: 0.59 | T29: 0.62
B30: b | C30: Thane | D30: Maharashtra | E30: 0.18 | F30: 0.15 | G30: 0.09 | H30: 0.01 | O30: 0.47 | P30: 0.43 | Q30: 0.48 | R30: 0.51 | S30: 0.54 | T30: 0.56
A31: 13 | B31: a | C31: Ashoknagar | D31: Madhya Pradesh | E31: 0.19 | F31: 0.16 | G31: 0.10 | H31: 0.03 | I31: =E31-E32 -> 0.04 | J31: =(E31/F31)*(F31-F32) -> 0.08 | K31: =F31-F32 -> 0.07 | L31: =(F31/G31)*(G31-G32) -> 0.02 | M31: =G31-G32 -> 0.01 | N31: =(G31/H31)*(H31-H32) -> 0.04 | O31: 0.52 | P31: 0.48 | Q31: 0.53 | R31: 0.56 | S31: 0.58 | T31: 0.61
B32: b | C32: Solapur | D32: Maharashtra | E32: 0.15 | F32: 0.10 | G32: 0.09 | H32: 0.02 | O32: 0.37 | P32: 0.35 | Q32: 0.38 | R32: 0.40 | S32: 0.43 | T32: 0.46
A33: 14 | B33: a | C33: Uttar Bastar Kanker | D33: Chhattisgarh | E33: 0.19 | F33: 0.14 | G33: 0.10 | H33: 0.03 | I33: =E33-E34 -> 0.04 | J33: =(E33/F33)*(F33-F34) -> 0.04 | K33: =F33-F34 -> 0.03 | L33: =(F33/G33)*(G33-G34) -> 0.04 | M33: =G33-G34 -> 0.03 | N33: =(G33/H33)*(H33-H34) -> 0.02 | O33: 0.49 | P33: 0.46 | Q33: 0.50 | R33: 0.53 | S33: 0.56 | T33: 0.59
B34: b | C34: Wayanad | D34: Kerala | E34: 0.14 | F34: 0.11 | G34: 0.08 | H34: 0.02 | O34: 0.37 | P34: 0.35 | Q34: 0.38 | R34: 0.40 | S34: 0.43 | T34: 0.46
A35: 15 | B35: a | C35: Jabalpur | D35: Madhya Pradesh | E35: 0.19 | F35: 0.14 | G35: 0.10 | H35: 0.03 | I35: =E35-E36 -> 0.05 | J35: =(E35/F35)*(F35-F36) -> 0.04 | K35: =F35-F36 -> 0.03 | L35: =(F35/G35)*(G35-G36) -> 0.02 | M35: =G35-G36 -> 0.02 | N35: =(G35/H35)*(H35-H36) -> 0.04 | O35: 0.49 | P35: 0.46 | Q35: 0.50 | R35: 0.52 | S35: 0.55 | T35: 0.59
B36: b | C36: Ratnagiri | D36: Maharashtra | E36: 0.13 | F36: 0.11 | G36: 0.08 | H36: 0.02 | O36: 0.37 | P36: 0.35 | Q36: 0.38 | R36: 0.39 | S36: 0.41 | T36: 0.43
A37: 16 | B37: a | C37: Raigarh | D37: Maharashtra | E37: 0.17 | F37: 0.12 | G37: 0.09 | H37: 0.04 | I37: =E37-E38 -> 0.04 | J37: =(E37/F37)*(F37-F38) -> 0.01 | K37: =F37-F38 -> 0.00 | L37: =(F37/G37)*(G37-G38) -> 0.06 | M37: =G37-G38 -> 0.04 | N37: =(G37/H37)*(H37-H38) -> 0.02 | O37: 0.44 | P37: 0.42 | Q37: 0.45 | R37: 0.48 | S37: 0.51 | T37: 0.55
B38: b | C38: Sonitpur | D38: Assam | E38: 0.13 | F38: 0.11 | G38: 0.05 | H38: 0.03 | O38: 0.33 | P38: 0.32 | Q38: 0.35 | R38: 0.37 | S38: 0.40 | T38: 0.42
A39: Situation | C39: District | D39: State | E39: q = wyWA | F39: r = wyAN | G39: s = wyST | H39: t = wyOW | I39: q1-q2 | J39: (q1/r1)*(r1-r2) | K39: r1-r2 | L39: (r1/s1)*(s1-s2) | M39: (s1-s2) | N39: (s1/t1)*(t1-t2) | O39: Geometric | P39: Linear | Q39: MANUSH (α = 2) | R39: MANUSH (α = 3) | S39: MANUSH (α = 5) | T39: MANUSH (α = 10)
A40: 17 | B40: a | C40: Tiruvannamalai | D40: Tamil Nadu | E40: 0.21 | F40: 0.10 | G40: 0.09 | H40: 0.04 | I40: =E40-E41 -> 0.07 | J40: =(E40/F40)*(F40-F41) -> 0.01 | K40: =F40-F41 -> 0.00 | L40: =(F40/G40)*(G40-G41) -> 0.02 | M40: =G40-G41 -> 0.02 | N40: =(G40/H40)*(H40-H41) -> 0.05 | O40: 0.48 | P40: 0.44 | Q40: 0.49 | R40: 0.54 | S40: 0.60 | T40: 0.66
B41: b | C41: Mandya | D41: Karnataka | E41: 0.14 | F41: 0.09 | G41: 0.07 | H41: 0.02 | O41: 0.35 | P41: 0.32 | Q41: 0.36 | R41: 0.38 | S41: 0.41 | T41: 0.44
A43: Cases rewarded as result of Shortfall sensitivity
A44: Situation | C44: District | D44: State | E44: q = wyST | F44: r = wyOW | G44: s = wyAN | H44: t = wyWA | I44: q1-q2 | J44: (q1/r1)*(r1-r2) | K44: r1-r2 | L44: (r1/s1)*(s1-s2) | M44: (s1-s2) | N44: (s1/t1)*(t1-t2) | O44: Geometric | P44: Linear | Q44: MANUSH (α = 2) | R44: MANUSH (α = 3) | S44: MANUSH (α = 5) | T44: MANUSH (α = 10)
A45: 1 | B45: a | C45: Rajouri | D45: Jammu & Kashmir | E45: 0.14 | F45: 0.11 | G45: 0.08 | H45: 0.07 | I45: =E45-E46 -> 0.05 | J45: =(E45/F45)*(F45-F46) -> 0.03 | K45: =F45-F46 -> 0.02 | L45: =(F45/G45)*(G45-G46) -> 0.00 | M45: =G45-G46 -> 0.00 | N45: =(G45/H45)*(H45-H46) -> 0.00 | O45: 0.40 | P45: 0.39 | Q45: 0.40 | R45: 0.41 | S45: 0.42 | T45: 0.45
B46: b | C46: Bathinda | D46: Punjab | E46: 0.10 | F46: 0.08 | G46: 0.07 | H46: 0.06 | O46: 0.32 | P46: 0.31 | Q46: 0.31 | R46: 0.31 | S46: 0.31 | T46: 0.31
A47: 2 | B47: a | C47: Rajouri | D47: Jammu & Kashmir | E47: 0.14 | F47: 0.11 | G47: 0.08 | H47: 0.07 | I47: =E47-E48 -> 0.05 | J47: =(E47/F47)*(F47-F48) -> 0.03 | K47: =F47-F48 -> 0.02 | L47: =(F47/G47)*(G47-G48) -> 0.02 | M47: =G47-G48 -> 0.02 | N47: =(G47/H47)*(H47-H48) -> 0.02 | O47: 0.40 | P47: 0.39 | Q47: 0.40 | R47: 0.41 | S47: 0.42 | T47: 0.45
B48: b | C48: Shupiyan | D48: Jammu & Kashmir | E48: 0.09 | F48: 0.08 | G48: 0.06 | H48: 0.05 | O48: 0.29 | P48: 0.29 | Q48: 0.29 | R48: 0.29 | S48: 0.29 | T48: 0.29

Sheet 8. Hiatus Sensitivity Cases
A1: Examples explaining Hiatus Sensitivity to Level
E3: Weighted Standardized values | I3: Weighted Average | J3: Aggregation Scores | M3: ʋk = (GHIk - µGHIk)
A4: Situation | C4: Districts | D4: State | E4: wyST | F4: wyWA | G4: wyAN | H4: wyOW | I4: µ | J4: GM | K4: LA | L4: MANUSH (α = 2) | M4: Geometric -µ | N4: Linear - µ | O4: MANUSH - µ
A5: 1 | B5: a | C5: Bhopal | D5: Madhya Pradesh | E5: 0.18 | F5: 0.13 | G5: 0.13 | H5: 0.03 | I5: 0.47 | J5: 0.54 | K5: 0.47 | L5: 0.51 | M5: =J5-I5 -> 0.07 | N5: =K5-I5 -> 0.00 | O5: =L5-I5 -> 0.03
B6: b | C6: Chandauli | D6: Uttar Pradesh | E6: 0.17 | F6: 0.11 | G6: 0.11 | H6: 0.01 | I6: 0.40 | J6: 0.45 | K6: 0.40 | L6: 0.45 | M6: =J6-I6 -> 0.05 | N6: =K6-I6 -> 0.00 | O6: =L6-I6 -> 0.05

Sheet 9.Districts under NNM & MANUSH
A1: List and ranking of districts phased under National Nutrition Mission (NNM) and its priority categorisation based on MANUSH scores
A3: S.No. | B3: Districts | C3: State | D3: weighted_s | E3: weighted_w | F3: weighted_a | G3: weighted_ow | H3: MANUSH (α=2) scores | I3: MANUSH (α=2) rank | J3: Priority based on MANUSH Scores | K3: NNM rank | L3: NNM Phase
A4: 1 | B4: Nicobars | C4: Andaman and Nicobars | D4: 0.08 | E4: 0.04 | F4: 0.08 | G4: 0.06 | H4: 0.27 | I4: 35 | J4: 3 | K4: 606 | L4: 2
A5: 2 | B5: North & Middle Andaman | C5: Andaman and Nicobars | D5: 0.13 | E5: 0.19 | F5: 0.08 | G5: 0.03 | H5: 0.48 | I5: 425 | J5: 2 | K5: 389 | L5: 1
A6: 3 | B6: South Andaman | C6: Andaman and Nicobars | D6: 0.08 | E6: 0.09 | F6: 0.08 | G6: 0.04 | H6: 0.30 | I6: 60 | J6: 3 | K6: 608 | L6: 2
A7: 4 | B7: Srikakulam | C7: Andhra Pradesh | D7: 0.11 | E7: 0.09 | F7: 0.12 | G7: 0.01 | H7: 0.36 | I7: 168 | J7: 3 | K7: 484 | L7: 1
A8: 5 | B8: Vizianagaram | C8: Andhra Pradesh | D8: 0.14 | E8: 0.11 | F8: 0.13 | G8: 0.00 | H8: 0.44 | I8: 346 | J8: 2 | K8: 301 | L8: 1
A9: 6 | B9: Visakhapatnam | C9: Andhra Pradesh | D9: 0.12 | E9: 0.10 | F9: 0.11 | G9: 0.04 | H9: 0.38 | I9: 198 | J9: 3 | K9: 432 | L9: 1
A10: 7 | B10: East Godavari | C10: Andhra Pradesh | D10: 0.11 | E10: 0.09 | F10: 0.11 | G10: 0.01 | H10: 0.34 | I10: 128 | J10: 3 | K10: 491 | L10: 1
A11: 8 | B11: West Godavari | C11: Andhra Pradesh | D11: 0.11 | E11: 0.09 | F11: 0.09 | G11: 0.02 | H11: 0.33 | I11: 110 | J11: 3 | K11: 470 | L11: 1
A12: 9 | B12: Krishna | C12: Andhra Pradesh | D12: 0.09 | E12: 0.12 | F12: 0.10 | G12: 0.05 | H12: 0.37 | I12: 181 | J12: 3 | K12: 574 | L12: 2
A13: 10 | B13: Guntur | C13: Andhra Pradesh | D13: 0.09 | E13: 0.11 | F13: 0.11 | G13: 0.01 | H13: 0.35 | I13: 138 | J13: 3 | K13: 584 | L13: 2
A14: 11 | B14: Prakasam | C14: Andhra Pradesh | D14: 0.11 | E14: 0.09 | F14: 0.09 | G14: 0.02 | H14: 0.34 | I14: 113 | J14: 3 | K14: 480 | L14: 1
A15: 12 | B15: Sri Potti Sriramulu Nellore | C15: Andhra Pradesh | D15: 0.11 | E15: 0.10 | F15: 0.08 | G15: 0.02 | H15: 0.34 | I15: 124 | J15: 3 | K15: 450 | L15: 2
A16: 13 | B16: Y.S.R. | C16: Andhra Pradesh | D16: 0.14 | E16: 0.11 | F16: 0.09 | G16: 0.01 | H16: 0.39 | I16: 229 | J16: 2 | K16: 314 | L16: 1
A17: 14 | B17: Kurnool | C17: Andhra Pradesh | D17: 0.17 | E17: 0.11 | F17: 0.09 | G17: 0.01 | H17: 0.44 | I17: 343 | J17: 2 | K17: 151 | L17: 1
A18: 15 | B18: Anantapur | C18: Andhra Pradesh | D18: 0.16 | E18: 0.09 | F18: 0.09 | G18: 0.00 | H18: 0.39 | I18: 234 | J18: 2 | K18: 230 | L18: 1
A19: 16 | B19: Chittoor | C19: Andhra Pradesh | D19: 0.12 | E19: 0.11 | F19: 0.08 | G19: 0.03 | H19: 0.36 | I19: 156 | J19: 3 | K19: 410 | L19: 1
A20: 17 | B20: Tawang | C20: Arunanchal Pradesh | D20: 0.08 | E20: 0.12 | F20: 0.07 | G20: 0.16 | H20: 0.45 | I20: 363 | J20: 2 | K20: 603 | L20: 3
A21: 18 | B21: West Kameng | C21: Arunanchal Pradesh | D21: 0.11 | E21: 0.04 | F21: 0.06 | G21: 0.06 | H21: 0.28 | I21: 49 | J21: 3 | K21: 497 | L21: 3
A22: 19 | B22: East Kameng | C22: Arunanchal Pradesh | D22: 0.16 | E22: 0.09 | F22: 0.07 | G22: 0.08 | H22: 0.42 | I22: 288 | J22: 2 | K22: 195 | L22: 1
A23: 20 | B23: Papumpare | C23: Arunanchal Pradesh | D23: 0.10 | E23: 0.06 | F23: 0.09 | G23: 0.07 | H23: 0.31 | I23: 76 | J23: 3 | K23: 531 | L23: 3
A24: 21 | B24: Upper Subansiri | C24: Arunanchal Pradesh | D24: 0.11 | E24: 0.07 | F24: 0.08 | G24: 0.10 | H24: 0.37 | I24: 176 | J24: 3 | K24: 477 | L24: 3
A25: 22 | B25: West Siang | C25: Arunanchal Pradesh | D25: 0.13 | E25: 0.12 | F25: 0.05 | G25: 0.07 | H25: 0.39 | I25: 219 | J25: 2 | K25: 347 | L25: 2
A26: 23 | B26: East Siang | C26: Arunanchal Pradesh | D26: 0.08 | E26: 0.11 | F26: 0.08 | G26: 0.06 | H26: 0.33 | I26: 100 | J26: 3 | K26: 594 | L26: 3
A27: 24 | B27: Upper Siang | C27: Arunanchal Pradesh | D27: 0.09 | E27: 0.18 | F27: 0.07 | G27: 0.08 | H27: 0.45 | I27: 367 | J27: 2 | K27: 544 | L27: 3
A28: 25 | B28: Changlang | C28: Arunanchal Pradesh | D28: 0.09 | E28: 0.10 | F28: 0.11 | G28: 0.02 | H28: 0.33 | I28: 112 | J28: 3 | K28: 561 | L28: 3
A29: 26 | B29: Tirap | C29: Arunanchal Pradesh | D29: 0.15 | E29: 0.15 | F29: 0.09 | G29: 0.07 | H29: 0.48 | I29: 432 | J29: 2 | K29: 240 | L29: 2
A30: 27 | B30: Lower Subansiri | C30: Arunanchal Pradesh | D30: 0.14 | E30: 0.14 | F30: 0.08 | G30: 0.14 | H30: 0.49 | I30: 474 | J30: 1 | K30: 338 | L30: 2
A31: 28 | B31: Kurung Kumey | C31: Arunanchal Pradesh | D31: 0.15 | E31: 0.14 | F31: 0.07 | G31: 0.07 | H31: 0.45 | I31: 365 | J31: 2 | K31: 256 | L31: 2
A32: 29 | B32: Dibang Valley | C32: Arunanchal Pradesh | D32: 0.15 | E32: 0.05 | F32: 0.05 | G32: 0.10 | H32: 0.38 | I32: 210 | J32: 2 | K32: 258 | L32: 2
A33: 30 | B33: Lower Dibang Valley | C33: Arunanchal Pradesh | D33: 0.09 | E33: 0.13 | F33: 0.10 | G33: 0.09 | H33: 0.40 | I33: 252 | J33: 2 | K33: 582 | L33: 3
A34: 31 | B34: Lohit | C34: Arunanchal Pradesh | D34: 0.10 | E34: 0.13 | F34: 0.09 | G34: 0.05 | H34: 0.39 | I34: 217 | J34: 2 | K34: 502 | L34: 3
A35: 32 | B35: Anjaw | C35: Arunanchal Pradesh | D35: 0.08 | E35: 0.11 | F35: 0.09 | G35: 0.08 | H35: 0.35 | I35: 146 | J35: 3 | K35: 594 | L35: 2
A36: 33 | B36: Kokrajhar | C36: Assam | D36: 0.12 | E36: 0.09 | F36: 0.07 | G36: 0.02 | H36: 0.33 | I36: 99 | J36: 3 | K36: 423 | L36: 2
A37: 34 | B37: Dhubri | C37: Assam | D37: 0.18 | E37: 0.13 | F37: 0.07 | G37: 0.07 | H37: 0.48 | I37: 445 | J37: 1 | K37: 93 | L37: 1
A38: 35 | B38: Goalpara | C38: Assam | D38: 0.16 | E38: 0.13 | F38: 0.06 | G38: 0.03 | H38: 0.44 | I38: 337 | J38: 2 | K38: 183 | L38: 1
A39: 36 | B39: Barpeta | C39: Assam | D39: 0.16 | E39: 0.10 | F39: 0.05 | G39: 0.03 | H39: 0.39 | I39: 222 | J39: 2 | K39: 200 | L39: 1
A40: 37 | B40: Morigaon | C40: Assam | D40: 0.15 | E40: 0.06 | F40: 0.06 | G40: 0.02 | H40: 0.34 | I40: 121 | J40: 3 | K40: 267 | L40: 2
A41: 38 | B41: Nagaon | C41: Assam | D41: 0.15 | E41: 0.08 | F41: 0.06 | G41: 0.00 | H41: 0.35 | I41: 135 | J41: 3 | K41: 267 | L41: 2
A42: 39 | B42: Sonitpur | C42: Assam | D42: 0.11 | E42: 0.13 | F42: 0.05 | G42: 0.03 | H42: 0.35 | I42: 142 | J42: 3 | K42: 464 | L42: 3
A43: 40 | B43: Lakhimpur | C43: Assam | D43: 0.11 | E43: 0.07 | F43: 0.05 | G43: 0.01 | H43: 0.28 | I43: 40 | J43: 3 | K43: 454 | L43: 3
A44: 41 | B44: Dhemaji | C44: Assam | D44: 0.14 | E44: 0.04 | F44: 0.06 | G44: 0.01 | H44: 0.31 | I44: 67 | J44: 3 | K44: 331 | L44: 2
A45: 42 | B45: Tinsukia | C45: Assam | D45: 0.14 | E45: 0.09 | F45: 0.07 | G45: 0.04 | H45: 0.36 | I45: 157 | J45: 3 | K45: 323 | L45: 2
A46: 43 | B46: Dibrugarh | C46: Assam | D46: 0.13 | E46: 0.14 | F46: 0.09 | G46: 0.04 | H46: 0.41 | I46: 272 | J46: 2 | K46: 375 | L46: 2
A47: 44 | B47: Sivasagar | C47: Assam | D47: 0.14 | E47: 0.05 | F47: 0.06 | G47: 0.04 | H47: 0.32 | I47: 84 | J47: 3 | K47: 331 | L47: 2
A48: 45 | B48: Jorhat | C48: Assam | D48: 0.10 | E48: 0.09 | F48: 0.06 | G48: 0.02 | H48: 0.29 | I48: 55 | J48: 3 | K48: 527 | L48: 3
A49: 46 | B49: Golaghat | C49: Assam | D49: 0.13 | E49: 0.08 | F49: 0.06 | G49: 0.05 | H49: 0.33 | I49: 103 | J49: 3 | K49: 388 | L49: 2
A50: 47 | B50: Karbi Anglong | C50: Assam | D50: 0.11 | E50: 0.11 | F50: 0.04 | G50: 0.01 | H50: 0.32 | I50: 83 | J50: 3 | K50: 482 | L50: 3
A51: 48 | B51: Dima Hasao | C51: Assam | D51: 0.13 | E51: 0.04 | F51: 0.05 | G51: 0.02 | H51: 0.29 | I51: 54 | J51: 3 | K51: 347 | L51: 2
A52: 49 | B52: Cachar | C52: Assam | D52: 0.14 | E52: 0.18 | F52: 0.05 | G52: 0.05 | H52: 0.48 | I52: 424 | J52: 2 | K52: 314 | L52: 2
A53: 50 | B53: Karimganj | C53: Assam | D53: 0.16 | E53: 0.11 | F53: 0.04 | G53: 0.02 | H53: 0.39 | I53: 232 | J53: 2 | K53: 189 | L53: 1
A54: 51 | B54: Hailakandi | C54: Assam | D54: 0.15 | E54: 0.12 | F54: 0.05 | G54: 0.02 | H54: 0.38 | I54: 205 | J54: 3 | K54: 273 | L54: 2
A55: 52 | B55: Bongaigaon | C55: Assam | D55: 0.15 | E55: 0.14 | F55: 0.06 | G55: 0.08 | H55: 0.45 | I55: 377 | J55: 2 | K55: 251 | L55: 2
A56: 53 | B56: Chirang | C56: Assam | D56: 0.15 | E56: 0.08 | F56: 0.06 | G56: 0.03 | H56: 0.36 | I56: 171 | J56: 3 | K56: 236 | L56: 2
A57: 54 | B57: Kamrup | C57: Assam | D57: 0.13 | E57: 0.11 | F57: 0.06 | G57: 0.01 | H57: 0.35 | I57: 147 | J57: 3 | K57: 375 | L57: 2
A58: 55 | B58: Kamrup Metropolitan | C58: Assam | D58: 0.09 | E58: 0.07 | F58: 0.06 | G58: 0.03 | H58: 0.26 | I58: 27 | J58: 3 | K58: 544 | L58: 3
A59: 56 | B59: Nalbari | C59: Assam | D59: 0.10 | E59: 0.09 | F59: 0.08 | G59: 0.02 | H59: 0.31 | I59: 75 | J59: 3 | K59: 508 | L59: 3
A60: 57 | B60: Baksa | C60: Assam | D60: 0.12 | E60: 0.06 | F60: 0.07 | G60: 0.03 | H60: 0.31 | I60: 70 | J60: 3 | K60: 395 | L60: 2
A61: 58 | B61: Darrang | C61: Assam | D61: 0.17 | E61: 0.12 | F61: 0.08 | G61: 0.04 | H61: 0.43 | I61: 326 | J61: 2 | K61: 167 | L61: 1
A62: 59 | B62: Udalguri | C62: Assam | D62: 0.15 | E62: 0.11 | F62: 0.07 | G62: 0.05 | H62: 0.40 | I62: 255 | J62: 2 | K62: 251 | L62: 2
A63: 60 | B63: Pashchim Champaran | C63: Bihar | D63: 0.17 | E63: 0.13 | F63: 0.10 | G63: 0.01 | H63: 0.46 | I63: 403 | J63: 2 | K63: 163 | L63: 1
A64: 61 | B64: Purba Champaran | C64: Bihar | D64: 0.18 | E64: 0.11 | F64: 0.11 | G64: 0.01 | H64: 0.47 | I64: 410 | J64: 2 | K64: 97 | L64: 1
A65: 62 | B65: Sheohar | C65: Bihar | D65: 0.20 | E65: 0.09 | F65: 0.11 | G65: 0.02 | H65: 0.48 | I65: 446 | J65: 1 | K65: 20 | L65: 1
A66: 63 | B66: Sitamarhi | C66: Bihar | D66: 0.22 | E66: 0.10 | F66: 0.12 | G66: 0.03 | H66: 0.52 | I66: 556 | J66: 1 | K66: 6 | L66: 1
A67: 64 | B67: Madhubani | C67: Bihar | D67: 0.20 | E67: 0.12 | F67: 0.11 | G67: 0.02 | H67: 0.50 | I67: 484 | J67: 1 | K67: 29 | L67: 1
A68: 65 | B68: Supaul | C68: Bihar | D68: 0.19 | E68: 0.13 | F68: 0.12 | G68: 0.01 | H68: 0.50 | I68: 487 | J68: 1 | K68: 81 | L68: 1
A69: 66 | B69: Araria | C69: Bihar | D69: 0.19 | E69: 0.14 | F69: 0.10 | G69: 0.02 | H69: 0.50 | I69: 483 | J69: 1 | K69: 74 | L69: 1
A70: 67 | B70: Kishanganj | C70: Bihar | D70: 0.18 | E70: 0.14 | F70: 0.11 | G70: 0.03 | H70: 0.50 | I70: 478 | J70: 1 | K70: 98 | L70: 1
A71: 68 | B71: Purnia | C71: Bihar | D71: 0.20 | E71: 0.13 | F71: 0.11 | G71: 0.02 | H71: 0.51 | I71: 529 | J71: 1 | K71: 25 | L71: 1
A72: 69 | B72: Katihar | C72: Bihar | D72: 0.19 | E72: 0.12 | F72: 0.10 | G72: 0.02 | H72: 0.49 | I72: 457 | J72: 1 | K72: 59 | L72: 1
A73: 70 | B73: Madhepura | C73: Bihar | D73: 0.20 | E73: 0.15 | F73: 0.10 | G73: 0.01 | H73: 0.52 | I73: 555 | J73: 1 | K73: 29 | L73: 1
A74: 71 | B74: Saharsa | C74: Bihar | D74: 0.17 | E74: 0.14 | F74: 0.11 | G74: 0.03 | H74: 0.49 | I74: 469 | J74: 1 | K74: 155 | L74: 1
A75: 72 | B75: Darbhanga | C75: Bihar | D75: 0.19 | E75: 0.10 | F75: 0.12 | G75: 0.01 | H75: 0.48 | I75: 427 | J75: 2 | K75: 64 | L75: 1
A76: 73 | B76: Muzaffarpur | C76: Bihar | D76: 0.18 | E76: 0.11 | F76: 0.10 | G76: 0.02 | H76: 0.46 | I76: 392 | J76: 2 | K76: 85 | L76: 1
A77: 74 | B77: Gopalganj | C77: Bihar | D77: 0.14 | E77: 0.10 | F77: 0.11 | G77: 0.03 | H77: 0.39 | I77: 235 | J77: 2 | K77: 329 | L77: 1
A78: 75 | B78: Siwan | C78: Bihar | D78: 0.15 | E78: 0.09 | F78: 0.11 | G78: 0.02 | H78: 0.40 | I78: 244 | J78: 2 | K78: 276 | L78: 2
A79: 76 | B79: Saran | C79: Bihar | D79: 0.18 | E79: 0.11 | F79: 0.10 | G79: 0.01 | H79: 0.46 | I79: 386 | J79: 2 | K79: 109 | L79: 1
A80: 77 | B80: Vaishali | C80: Bihar | D80: 0.21 | E80: 0.09 | F80: 0.11 | G80: 0.01 | H80: 0.49 | I80: 475 | J80: 1 | K80: 17 | L80: 1
A81: 78 | B81: Samastipur | C81: Bihar | D81: 0.19 | E81: 0.11 | F81: 0.11 | G81: 0.01 | H81: 0.48 | I81: 436 | J81: 1 | K81: 59 | L81: 1
A82: 79 | B82: Begusarai | C82: Bihar | D82: 0.17 | E82: 0.11 | F82: 0.10 | G82: 0.03 | H82: 0.45 | I82: 384 | J82: 2 | K82: 136 | L82: 1
A83: 80 | B83: Khagaria | C83: Bihar | D83: 0.19 | E83: 0.10 | F83: 0.11 | G83: 0.02 | H83: 0.47 | I83: 423 | J83: 2 | K83: 52 | L83: 1
A84: 81 | B84: Bhagalpur | C84: Bihar | D84: 0.18 | E84: 0.14 | F84: 0.12 | G84: 0.02 | H84: 0.50 | I84: 498 | J84: 1 | K84: 101 | L84: 1
A85: 82 | B85: Banka | C85: Bihar | D85: 0.19 | E85: 0.16 | F85: 0.12 | G85: 0.02 | H85: 0.54 | I85: 578 | J85: 1 | K85: 54 | L85: 1
A86: 83 | B86: Munger | C86: Bihar | D86: 0.18 | E86: 0.13 | F86: 0.10 | G86: 0.01 | H86: 0.48 | I86: 434 | J86: 2 | K86: 101 | L86: 1
A87: 84 | B87: Lakhisarai | C87: Bihar | D87: 0.20 | E87: 0.12 | F87: 0.11 | G87: 0.01 | H87: 0.50 | I87: 490 | J87: 1 | K87: 41 | L87: 1
A88: 85 | B88: Sheikhpura | C88: Bihar | D88: 0.18 | E88: 0.17 | F88: 0.11 | G88: 0.01 | H88: 0.53 | I88: 573 | J88: 1 | K88: 105 | L88: 1
A89: 86 | B89: Nalanda | C89: Bihar | D89: 0.21 | E89: 0.15 | F89: 0.10 | G89: 0.01 | H89: 0.53 | I89: 575 | J89: 1 | K89: 13 | L89: 1
A90: 87 | B90: Patna | C90: Bihar | D90: 0.17 | E90: 0.17 | F90: 0.09 | G90: 0.01 | H90: 0.50 | I90: 492 | J90: 1 | K90: 167 | L90: 1
A91: 88 | B91: Bhojpur | C91: Bihar | D91: 0.17 | E91: 0.16 | F91: 0.12 | G91: 0.02 | H91: 0.51 | I91: 509 | J91: 1 | K91: 167 | L91: 1
A92: 89 | B92: Buxar | C92: Bihar | D92: 0.17 | E92: 0.12 | F92: 0.10 | G92: 0.02 | H92: 0.45 | I92: 374 | J92: 2 | K92: 155 | L92: 1
A93: 90 | B93: Kaimur (Bhabua) | C93: Bihar | D93: 0.21 | E93: 0.13 | F93: 0.11 | G93: 0.01 | H93: 0.52 | I93: 548 | J93: 1 | K93: 16 | L93: 1
A94: 91 | B94: Rohtas | C94: Bihar | D94: 0.19 | E94: 0.12 | F94: 0.10 | G94: 0.01 | H94: 0.48 | I94: 430 | J94: 2 | K94: 72 | L94: 1
A95: 92 | B95: Gaya | C95: Bihar | D95: 0.20 | E95: 0.15 | F95: 0.10 | G95: 0.01 | H95: 0.54 | I95: 577 | J95: 1 | K95: 21 | L95: 1
A96: 93 | B96: Nawada | C96: Bihar | D96: 0.19 | E96: 0.13 | F96: 0.09 | G96: 0.02 | H96: 0.48 | I96: 440 | J96: 1 | K96: 74 | L96: 1
A97: 94 | B97: Jamui | C97: Bihar | D97: 0.18 | E97: 0.18 | F97: 0.10 | G97: 0.02 | H97: 0.53 | I97: 564 | J97: 1 | K97: 112 | L97: 1
A98: 95 | B98: Jehanabad | C98: Bihar | D98: 0.20 | E98: 0.12 | F98: 0.10 | G98: 0.01 | H98: 0.50 | I98: 488 | J98: 1 | K98: 25 | L98: 1
A99: 96 | B99: Arwal | C99: Bihar | D99: 0.19 | E99: 0.19 | F99: 0.11 | G99: 0.01 | H99: 0.57 | I99: 607 | J99: 1 | K99: 46 | L99: 1
A100: 97 | B100: Aurangabad | C100: Bihar | D100: 0.19 | E100: 0.15 | F100: 0.09 | G100: 0.03 | H100: 0.50 | I100: 500 | J100: 1 | K100: 77 | L100: 1
A101: 98 | B101: Chandigarh | C101: Chandigarh | D101: 0.11 | E101: 0.07 | F101: 0.12 | G101: 0.03 | H101: 0.36 | I101: 149 | J101: 3 | K101: Not ranked | L101: Not listed
A102: 99 | B102: Bilaspur | C102: Chhattisgarh | D102: 0.13 | E102: 0.16 | F102: 0.05 | G102: 0.03 | H102: 0.42 | I102: 301 | J102: 2 | K102: 358 | L102: 2
A103: 100 | B103: Korea (Koriya) | C103: Chhattisgarh | D103: 0.12 | E103: 0.17 | F103: 0.06 | G103: 0.02 | H103: 0.43 | I103: 318 | J103: 2 | K103: 423 | L103: 2
A104: 101 | B104: Surguja | C104: Chhattisgarh | D104: 0.12 | E104: 0.13 | F104: 0.06 | G104: 0.01 | H104: 0.38 | I104: 209 | J104: 2 | K104: 396 | L104: 2
A105: 102 | B105: Jashpur | C105: Chhattisgarh | D105: 0.14 | E105: 0.11 | F105: 0.05 | G105: 0.02 | H105: 0.36 | I105: 158 | J105: 3 | K105: 338 | L105: 1
A106: 103 | B106: Korba | C106: Chhattisgarh | D106: 0.13 | E106: 0.16 | F106: 0.07 | G106: 0.01 | H106: 0.41 | I106: 277 | J106: 2 | K106: 377 | L106: 1
A107: 104 | B107: Janjgir - Champa | C107: Chhattisgarh | D107: 0.14 | E107: 0.13 | F107: 0.06 | G107: 0.00 | H107: 0.39 | I107: 240 | J107: 2 | K107: 301 | L107: 2
A108: 105 | B108: Kabirdham | C108: Chhattisgarh | D108: 0.16 | E108: 0.11 | F108: 0.06 | G108: 0.05 | H108: 0.40 | I108: 250 | J108: 2 | K108: 225 | L108: 1
A109: 106 | B109: Rajnandgaon | C109: Chhattisgarh | D109: 0.19 | E109: 0.10 | F109: 0.05 | G109: 0.08 | H109: 0.46 | I109: 387 | J109: 2 | K109: 68 | L109: 1
A110: 107 | B110: Durg | C110: Chhattisgarh | D110: 0.13 | E110: 0.13 | F110: 0.07 | G110: 0.01 | H110: 0.39 | I110: 223 | J110: 2 | K110: 355 | L110: 3
A111: 108 | B111: Raipur | C111: Chhattisgarh | D111: 0.15 | E111: 0.12 | F111: 0.08 | G111: 0.15 | H111: 0.50 | I111: 479 | J111: 1 | K111: 271 | L111: 1
A112: 109 | B112: Mahasamund | C112: Chhattisgarh | D112: 0.17 | E112: 0.12 | F112: 0.06 | G112: 0.02 | H112: 0.42 | I112: 308 | J112: 2 | K112: 162 | L112: 1
A113: 110 | B113: Dhamtari | C113: Chhattisgarh | D113: 0.13 | E113: 0.16 | F113: 0.09 | G113: 0.02 | H113: 0.45 | I113: 362 | J113: 2 | K113: 356 | L113: 2
A114: 111 | B114: Uttar Bastar Kanker | C114: Chhattisgarh | D114: 0.14 | E114: 0.19 | F114: 0.10 | G114: 0.03 | H114: 0.50 | I114: 499 | J114: 1 | K114: 314 | L114: Not listed
A115: 112 | B115: Bastar | C115: Chhattisgarh | D115: 0.16 | E115: 0.20 | F115: 0.10 | G115: 0.01 | H115: 0.54 | I115: 588 | J115: 1 | K115: 202 | L115: 1
A116: 113 | B116: Narayanpur | C116: Chhattisgarh | D116: 0.19 | E116: 0.18 | F116: 0.08 | G116: 0.01 | H116: 0.54 | I116: 583 | J116: 1 | K116: 64 | L116: 1
A117: 114 | B117: Dakshin Bastar Dantewada | C117: Chhattisgarh | D117: 0.17 | E117: 0.19 | F117: 0.12 | G117: 0.04 | H117: 0.56 | I117: 602 | J117: 1 | K117: 148 | L117: 1
A118: 115 | B118: Bijapur | C118: Chhattisgarh | D118: 0.19 | E118: 0.16 | F118: 0.09 | G118: 0.10 | H118: 0.54 | I118: 586 | J118: 1 | K118: 79 | L118: 1
A119: 116 | B119: Raigarh | C119: Chhattisgarh | D119: 0.15 | E119: 0.12 | F119: 0.06 | G119: 0.02 | H119: 0.40 | I119: 242 | J119: 2 | K119: 248 | L119: 2
A120: 117 | B120: Diu | C120: Daman and Diu | D120: 0.14 | E120: 0.10 | F120: 0.12 | G120: 0.02 | H120: 0.42 | I120: 295 | J120: 2 | K120: 291 | L120: 1
A121: 118 | B121: Daman | C121: Daman and Diu | D121: 0.07 | E121: 0.16 | F121: 0.12 | G121: 0.01 | H121: 0.42 | I121: 294 | J121: 2 | K121: 618 | L121: 2
A122: 119 | B122: North West | C122: Delhi | D122: 0.15 | E122: 0.11 | F122: 0.12 | G122: 0.04 | H122: 0.44 | I122: 341 | J122: 2 | K122: 261 | L122: 1
A123: 120 | B123: North | C123: Delhi | D123: 0.11 | E123: 0.08 | F123: 0.10 | G123: 0.02 | H123: 0.34 | I123: 117 | J123: 3 | K123: 470 | L123: 3
A124: 121 | B124: North East | C124: Delhi | D124: 0.11 | E124: 0.08 | F124: 0.08 | G124: 0.01 | H124: 0.30 | I124: 61 | J124: 3 | K124: 486 | L124: 2
A125: 122 | B125: East | C125: Delhi | D125: 0.09 | E125: 0.14 | F125: 0.08 | G125: 0.03 | H125: 0.37 | I125: 186 | J125: 3 | K125: 577 | L125: 3
A126: 123 | B126: New Delhi | C126: Delhi | D126: 0.11 | E126: 0.12 | F126: 0.11 | G126: 0.01 | H126: 0.39 | I126: 226 | J126: 2 | K126: 470 | L126: 3
A127: 124 | B127: Central | C127: Delhi | D127: 0.14 | E127: 0.14 | F127: 0.13 | G127: 0.00 | H127: 0.46 | I127: 397 | J127: 2 | K127: 306 | L127: 2
A128: 125 | B128: West | C128: Delhi | D128: 0.14 | E128: 0.11 | F128: 0.11 | G128: 0.02 | H128: 0.41 | I128: 268 | J128: 2 | K128: 287 | L128: 1
A129: 126 | B129: South West | C129: Delhi | D129: 0.13 | E129: 0.08 | F129: 0.11 | G129: 0.03 | H129: 0.36 | I129: 164 | J129: 3 | K129: 386 | L129: 2
A130: 127 | B130: South | C130: Delhi | D130: 0.12 | E130: 0.13 | F130: 0.11 | G130: 0.03 | H130: 0.41 | I130: 280 | J130: 2 | K130: 411 | L130: 2
A131: 128 | B131: Dadra & Nagar Haveli | C131: Dadra & Nagar Haveli | D131: 0.16 | E131: 0.17 | F131: 0.14 | G131: 0.03 | H131: 0.54 | I131: 579 | J131: 1 | K131: Not ranked | L131: Not listed
A132: 129 | B132: North Goa | C132: Goa | D132: 0.08 | E132: 0.11 | F132: 0.08 | G132: 0.05 | H132: 0.32 | I132: 94 | J132: 3 | K132: 588 | L132: 1
A133: 130 | B133: South Goa | C133: Goa | D133: 0.07 | E133: 0.17 | F133: 0.08 | G133: 0.05 | H133: 0.40 | I133: 249 | J133: 2 | K133: 624 | L133: 1
A134: 131 | B134: Kachchh | C134: Gujarat | D134: 0.16 | E134: 0.19 | F134: 0.14 | G134: 0.02 | H134: 0.55 | I134: 596 | J134: 1 | K134: 216 | L134: 2
A135: 132 | B135: Banaskantha | C135: Gujarat | D135: 0.16 | E135: 0.13 | F135: 0.10 | G135: 0.02 | H135: 0.44 | I135: 354 | J135: 2 | K135: 219 | L135: 2
A136: 133 | B136: Patan | C136: Gujarat | D136: 0.14 | E136: 0.15 | F136: 0.11 | G136: 0.01 | H136: 0.46 | I136: 395 | J136: 2 | K136: 284 | L136: 2
A137: 134 | B137: Mahesana | C137: Gujarat | D137: 0.16 | E137: 0.15 | F137: 0.13 | G137: 0.02 | H137: 0.50 | I137: 485 | J137: 1 | K137: 222 | L137: 2
A138: 135 | B138: Sabarkantha | C138: Gujarat | D138: 0.20 | E138: 0.14 | F138: 0.12 | G138: 0.02 | H138: 0.53 | I138: 563 | J138: 1 | K138: 41 | L138: 1
A139: 136 | B139: Gandhinagar | C139: Gujarat | D139: 0.14 | E139: 0.17 | F139: 0.12 | G139: 0.03 | H139: 0.50 | I139: 507 | J139: 1 | K139: 311 | L139: 2
A140: 137 | B140: Ahmadabad | C140: Gujarat | D140: 0.11 | E140: 0.16 | F140: 0.13 | G140: 0.00 | H140: 0.46 | I140: 399 | J140: 2 | K140: 450 | L140: 3
A141: 138 | B141: Surendranagar | C141: Gujarat | D141: 0.18 | E141: 0.17 | F141: 0.13 | G141: 0.03 | H141: 0.54 | I141: 582 | J141: 1 | K141: 126 | L141: 1
A142: 139 | B142: Rajkot | C142: Gujarat | D142: 0.12 | E142: 0.14 | F142: 0.10 | G142: 0.04 | H142: 0.42 | I142: 283 | J142: 2 | K142: 419 | L142: 2
A143: 140 | B143: Jamnagar | C143: Gujarat | D143: 0.11 | E143: 0.19 | F143: 0.13 | G143: 0.03 | H143: 0.49 | I143: 477 | J143: 1 | K143: 486 | L143: 3
A144: 141 | B144: Porbandar | C144: Gujarat | D144: 0.09 | E144: 0.15 | F144: 0.12 | G144: 0.04 | H144: 0.42 | I144: 310 | J144: 2 | K144: 574 | L144: 3
A145: 142 | B145: Junagadh | C145: Gujarat | D145: 0.11 | E145: 0.18 | F145: 0.13 | G145: 0.03 | H145: 0.49 | I145: 461 | J145: 1 | K145: 486 | L145: 3
A146: 143 | B146: Amreli | C146: Gujarat | D146: 0.15 | E146: 0.15 | F146: 0.12 | G146: 0.07 | H146: 0.49 | I146: 468 | J146: 1 | K146: 279 | L146: 2
A147: 144 | B147: Bhavnagar | C147: Gujarat | D147: 0.19 | E147: 0.16 | F147: 0.12 | G147: 0.01 | H147: 0.53 | I147: 559 | J147: 1 | K147: 74 | L147: 1
A148: 145 | B148: Anand | C148: Gujarat | D148: 0.19 | E148: 0.13 | F148: 0.10 | G148: 0.07 | H148: 0.50 | I148: 505 | J148: 1 | K148: 79 | L148: 1
A149: 146 | B149: Kheda | C149: Gujarat | D149: 0.18 | E149: 0.16 | F149: 0.09 | G149: 0.01 | H149: 0.50 | I149: 501 | J149: 1 | K149: 126 | L149: 1
A150: 147 | B150: Panchmahal | C150: Gujarat | D150: 0.16 | E150: 0.22 | F150: 0.08 | G150: 0.00 | H150: 0.55 | I150: 595 | J150: 1 | K150: 225 | L150: 2
A151: 148 | B151: Dohad | C151: Gujarat | D151: 0.17 | E151: 0.15 | F151: 0.10 | G151: 0.00 | H151: 0.48 | I151: 449 | J151: 1 | K151: 145 | L151: 1
A152: 149 | B152: Vadodara | C152: Gujarat | D152: 0.17 | E152: 0.10 | F152: 0.09 | G152: 0.01 | H152: 0.42 | I152: 297 | J152: 2 | K152: 158 | L152: 1
A153: 150 | B153: Narmada | C153: Gujarat | D153: 0.18 | E153: 0.22 | F153: 0.09 | G153: 0.03 | H153: 0.58 | I153: 616 | J153: 1 | K153: 93 | L153: 1
A154: 151 | B154: Bharuch | C154: Gujarat | D154: 0.16 | E154: 0.18 | F154: 0.09 | G154: 0.01 | H154: 0.50 | I154: 503 | J154: 1 | K154: 203 | L154: 2
A155: 152 | B155: The Dangs | C155: Gujarat | D155: 0.19 | E155: 0.26 | F155: 0.12 | G155: 0.00 | H155: 0.67 | I155: 639 | J155: 1 | K155: 81 | L155: 1
A156: 153 | B156: Navsari | C156: Gujarat | D156: 0.15 | E156: 0.16 | F156: 0.09 | G156: 0.03 | H156: 0.47 | I156: 409 | J156: 2 | K156: 256 | L156: 2
A157: 154 | B157: Valsad | C157: Gujarat | D157: 0.17 | E157: 0.18 | F157: 0.08 | G157: 0.00 | H157: 0.51 | I157: 525 | J157: 1 | K157: 174 | L157: 1
A158: 155 | B158: Surat | C158: Gujarat | D158: 0.12 | E158: 0.16 | F158: 0.07 | G158: 0.05 | H158: 0.42 | I158: 293 | J158: 2 | K158: 438 | L158: 2
A159: 156 | B159: Tapi | C159: Gujarat | D159: 0.14 | E159: 0.22 | F159: 0.08 | G159: 0.04 | H159: 0.53 | I159: 569 | J159: 1 | K159: 324 | L159: 2
A160: 157 | B160: Chamba | C160: Himachal Pradesh | D160: 0.12 | E160: 0.09 | F160: 0.11 | G160: 0.03 | H160: 0.36 | I160: 172 | J160: 3 | K160: 441 | L160: 1
A161: 158 | B161: Kangra | C161: Himachal Pradesh | D161: 0.10 | E161: 0.07 | F161: 0.08 | G161: 0.01 | H161: 0.28 | I161: 45 | J161: 3 | K161: 522 | L161: 3
A162: 159 | B162: Lahul and Spiti | C162: Himachal Pradesh | D162: 0.09 | E162: 0.13 | F162: 0.16 | G162: 0.07 | H162: 0.45 | I162: 379 | J162: 2 | K162: 570 | L162: 3
A163: 160 | B163: Kullu | C163: Himachal Pradesh | D163: 0.07 | E163: 0.07 | F163: 0.09 | G163: 0.03 | H163: 0.27 | I163: 37 | J163: 3 | K163: 615 | L163: 3
A164: 161 | B164: Mandi | C164: Himachal Pradesh | D164: 0.10 | E164: 0.08 | F164: 0.06 | G164: 0.03 | H164: 0.29 | I164: 52 | J164: 3 | K164: 512 | L164: 3
A165: 162 | B165: Hamirpur | C165: Himachal Pradesh | D165: 0.11 | E165: 0.08 | F165: 0.07 | G165: 0.05 | H165: 0.31 | I165: 79 | J165: 3 | K165: 454 | L165: 1
A166: 163 | B166: Una | C166: Himachal Pradesh | D166: 0.09 | E166: 0.06 | F166: 0.09 | G166: 0.02 | H166: 0.28 | I166: 48 | J166: 3 | K166: 574 | L166: 2
A167: 164 | B167: Bilaspur | C167: Himachal Pradesh | D167: 0.10 | E167: 0.08 | F167: 0.05 | G167: 0.04 | H167: 0.28 | I167: 44 | J167: 3 | K167: 358 | L167: 2
A168: 165 | B168: Solan | C168: Himachal Pradesh | D168: 0.11 | E168: 0.11 | F168: 0.12 | G168: 0.02 | H168: 0.38 | I168: 202 | J168: 3 | K168: 493 | L168: 1
A169: 166 | B169: Sirmaur | C169: Himachal Pradesh | D169: 0.09 | E169: 0.12 | F169: 0.11 | G169: 0.03 | H169: 0.37 | I169: 174 | J169: 3 | K169: 561 | L169: 3
A170: 167 | B170: Shimla | C170: Himachal Pradesh | D170: 0.12 | E170: 0.09 | F170: 0.12 | G170: 0.01 | H170: 0.37 | I170: 187 | J170: 3 | K170: 430 | L170: 1
A171: 168 | B171: Kinnaur | C171: Himachal Pradesh | D171: 0.07 | E171: 0.07 | F171: 0.14 | G171: 0.01 | H171: 0.34 | I171: 120 | J171: 3 | K171: 623 | L171: 3
A172: 169 | B172: Panchkula | C172: Haryana | D172: 0.08 | E172: 0.19 | F172: 0.11 | G172: 0.05 | H172: 0.47 | I172: 421 | J172: 2 | K172: 587 | L172: 3
A173: 170 | B173: Ambala | C173: Haryana | D173: 0.08 | E173: 0.23 | F173: 0.13 | G173: 0.12 | H173: 0.58 | I173: 613 | J173: 1 | K173: 609 | L173: 3
A174: 171 | B174: Yamunanagar | C174: Haryana | D174: 0.12 | E174: 0.16 | F174: 0.10 | G174: 0.03 | H174: 0.44 | I174: 342 | J174: 2 | K174: 438 | L174: 2
A175: 172 | B175: Kurukshetra | C175: Haryana | D175: 0.12 | E175: 0.15 | F175: 0.11 | G175: 0.04 | H175: 0.43 | I175: 328 | J175: 2 | K175: 405 | L175: 2
A176: 173 | B176: Kaithal | C176: Haryana | D176: 0.13 | E176: 0.14 | F176: 0.11 | G176: 0.03 | H176: 0.44 | I176: 356 | J176: 2 | K176: 366 | L176: 2
A177: 174 | B177: Karnal | C177: Haryana | D177: 0.16 | E177: 0.12 | F177: 0.13 | G177: 0.08 | H177: 0.49 | I177: 454 | J177: 1 | K177: 213 | L177: 2
A178: 175 | B178: Panipat | C178: Haryana | D178: 0.17 | E178: 0.15 | F178: 0.11 | G178: 0.02 | H178: 0.50 | I178: 486 | J178: 1 | K178: 142 | L178: 1
A179: 176 | B179: Sonipat | C179: Haryana | D179: 0.15 | E179: 0.13 | F179: 0.10 | G179: 0.03 | H179: 0.44 | I179: 355 | J179: 2 | K179: 233 | L179: 2
A180: 177 | B180: Jind | C180: Haryana | D180: 0.10 | E180: 0.16 | F180: 0.13 | G180: 0.03 | H180: 0.45 | I180: 375 | J180: 2 | K180: 518 | L180: 3
A181: 178 | B181: Fatehabad | C181: Haryana | D181: 0.11 | E181: 0.12 | F181: 0.12 | G181: 0.07 | H181: 0.42 | I181: 305 | J181: 2 | K181: 470 | L181: 3
A182: 179 | B182: Sirsa | C182: Haryana | D182: 0.13 | E182: 0.14 | F182: 0.12 | G182: 0.03 | H182: 0.44 | I182: 353 | J182: 2 | K182: 356 | L182: 2
A183: 180 | B183: Hisar | C183: Haryana | D183: 0.10 | E183: 0.14 | F183: 0.11 | G183: 0.04 | H183: 0.41 | I183: 265 | J183: 2 | K183: 522 | L183: 3
A184: 181 | B184: Bhiwani | C184: Haryana | D184: 0.14 | E184: 0.09 | F184: 0.12 | G184: 0.03 | H184: 0.41 | I184: 266 | J184: 2 | K184: 338 | L184: 2
A185: 182 | B185: Rohtak | C185: Haryana | D185: 0.14 | E185: 0.08 | F185: 0.13 | G185: 0.02 | H185: 0.41 | I185: 263 | J185: 2 | K185: 306 | L185: 2
A186: 183 | B186: Jhajjar | C186: Haryana | D186: 0.09 | E186: 0.09 | F186: 0.12 | G186: 0.04 | H186: 0.35 | I186: 132 | J186: 3 | K186: 582 | L186: 3
A187: 184 | B187: Mahendragarh | C187: Haryana | D187: 0.09 | E187: 0.12 | F187: 0.12 | G187: 0.09 | H187: 0.41 | I187: 275 | J187: 2 | K187: 561 | L187: 3
A188: 185 | B188: Rewari | C188: Haryana | D188: 0.11 | E188: 0.11 | F188: 0.13 | G188: 0.02 | H188: 0.40 | I188: 241 | J188: 2 | K188: 489 | L188: 3
A189: 186 | B189: Gurgaon | C189: Haryana | D189: 0.16 | E189: 0.11 | F189: 0.11 | G189: 0.01 | H189: 0.43 | I189: 332 | J189: 2 | K189: 206 | L189: 2
A190: 187 | B190: Mewat | C190: Haryana | D190: 0.20 | E190: 0.10 | F190: 0.14 | G190: 0.06 | H190: 0.53 | I190: 570 | J190: 1 | K190: 23 | L190: 1
A191: 188 | B191: Faridabad | C191: Haryana | D191: 0.11 | E191: 0.12 | F191: 0.13 | G191: 0.02 | H191: 0.41 | I191: 264 | J191: 2 | K191: 448 | L191: 3
A192: 189 | B192: Palwal | C192: Haryana | D192: 0.13 | E192: 0.13 | F192: 0.13 | G192: 0.00 | H192: 0.44 | I192: 336 | J192: 2 | K192: 359 | L192: 2
A193: 190 | B193: Garhwa | C193: Jharkhand | D193: 0.18 | E193: 0.19 | F193: 0.11 | G193: 0.01 | H193: 0.55 | I193: 593 | J193: 1 | K193: 122 | L193: 1
A194: 191 | B194: Chatra | C194: Jharkhand | D194: 0.19 | E194: 0.18 | F194: 0.10 | G194: 0.02 | H194: 0.56 | I194: 600 | J194: 1 | K194: 54 | L194: 1
A195: 192 | B195: Kodarma | C195: Jharkhand | D195: 0.16 | E195: 0.12 | F195: 0.12 | G195: 0.02 | H195: 0.46 | I195: 405 | J195: 2 | K195: 188 | L195: 1
A196: 193 | B196: Giridih | C196: Jharkhand | D196: 0.18 | E196: 0.14 | F196: 0.12 | G196: 0.03 | H196: 0.51 | I196: 516 | J196: 1 | K196: 116 | L196: 1
A197: 194 | B197: Deoghar | C197: Jharkhand | D197: 0.17 | E197: 0.14 | F197: 0.11 | G197: 0.02 | H197: 0.49 | I197: 456 | J197: 1 | K197: 138 | L197: 1
A198: 195 | B198: Godda | C198: Jharkhand | D198: 0.21 | E198: 0.15 | F198: 0.13 | G198: 0.01 | H198: 0.57 | I198: 606 | J198: 1 | K198: 14 | L198: 1
A199: 196 | B199: Sahibganj | C199: Jharkhand | D199: 0.19 | E199: 0.15 | F199: 0.12 | G199: 0.03 | H199: 0.53 | I199: 568 | J199: 1 | K199: 46 | L199: 1
A200: 197 | B200: Pakur | C200: Jharkhand | D200: 0.20 | E200: 0.15 | F200: 0.12 | G200: 0.03 | H200: 0.54 | I200: 587 | J200: 1 | K200: 29 | L200: 1
A201: 198 | B201: Dhanbad | C201: Jharkhand | D201: 0.15 | E201: 0.17 | F201: 0.12 | G201: 0.03 | H201: 0.50 | I201: 496 | J201: 1 | K201: 264 | L201: 1
... 442 more rows
